NUMERO_MANDATO;RIGA_MANDATO;QUIET;IMPORTO_RIGA;IMPORTO_MANDATO;BENEFICIARIO;CIG;TITOLO_PAGAMENTO;DATA_MANDATO;CAPITOLO;ARTICOLO;NUMERO_IMPEGNO;TITOLO;DESCR_TITOLO;LIVELLO_II;DESCR_LIVELLO_II;LIVELLO_III;DESCR_LIVELLO_III;LIVELLO_IV;DESCR_LIVELLO_IV;LIVELLO_V;DESCR_LIVELLO_V;DATA_PAG_EFF;
673;1;0;"4,00";"38,00";ECONOMO UNIONE MONTANA MAROSTICENSE (PIGATO ANTONELLA); ;Rimborso bolletta N.    19 del  08-05-18 SPESA X PEDAGGIO AUTOSTRADA DEL GIORNO 30032018 X RITIRO VESTIARIO PRESSO F.A.P. PADOVA - DIP. LOVATO ELEONORA;03-07-2018;244;0;11;1;Spese correnti;3;Acquisto di beni e servizi;2;Acquisto di servizi;2;"Organizzazione eventi, pubblicita` e servizi per trasferta";999;"Altre spese per relazioni pubbliche, convegni e mostre, pubblicita` n.a.c";03-07-2018;
673;2;0;"5,80";"38,00";ECONOMO UNIONE MONTANA MAROSTICENSE (PIGATO ANTONELLA); ;Rimborso bolletta N.    21 del  08-05-18 SPESA X PEDAGGIO AUTOSTRADA DEL 20022018 X CORSO DI FORMAZIONE TENUTOSI A PADOVA - DIP. CANTELE MASSIMILIANO;03-07-2018;244;0;11;1;Spese correnti;3;Acquisto di beni e servizi;2;Acquisto di servizi;2;"Organizzazione eventi, pubblicita` e servizi per trasferta";999;"Altre spese per relazioni pubbliche, convegni e mostre, pubblicita` n.a.c";03-07-2018;
673;3;0;"6,40";"38,00";ECONOMO UNIONE MONTANA MAROSTICENSE (PIGATO ANTONELLA); ;Rimborso bolletta N.    20 del  08-05-18 SPESA X PARCHEGGIO DEL 14022018 X CORSO DI FORMAZIONE TENUTOSI A TREVISO - DIP. CANTELE MASSIMILIANO;03-07-2018;244;0;11;1;Spese correnti;3;Acquisto di beni e servizi;2;Acquisto di servizi;2;"Organizzazione eventi, pubblicita` e servizi per trasferta";999;"Altre spese per relazioni pubbliche, convegni e mostre, pubblicita` n.a.c";03-07-2018;
673;4;0;"10,00";"38,00";ECONOMO UNIONE MONTANA MAROSTICENSE (PIGATO ANTONELLA); ;Rimborso bolletta N.    31 del  13-06-18 PAGAMENTO BIGLIETTO FERROVIARIO X VENEZIA X INCONTRO CON FUNZIONARI REGIONE VENETO X PROBLEMATICHE UNIONE IL 08022018 - DOTT.SSA LORO EMANUELA;03-07-2018;244;0;11;1;Spese correnti;3;Acquisto di beni e servizi;2;Acquisto di servizi;2;"Organizzazione eventi, pubblicita` e servizi per trasferta";999;"Altre spese per relazioni pubbliche, convegni e mostre, pubblicita` n.a.c";03-07-2018;
673;5;0;"11,80";"38,00";ECONOMO UNIONE MONTANA MAROSTICENSE (PIGATO ANTONELLA); ;Rimborso bolletta N.    25 del  22-05-18 PAGAMENTO PEDAGGIO AUTOSTRADALE DEL 10052018 X INCONTRO REGIONALE X PIANI POLITICHE GIOVANILI A MESTRE - DOTT. FRISON MICHELE ANGELO;03-07-2018;244;0;11;1;Spese correnti;3;Acquisto di beni e servizi;2;Acquisto di servizi;2;"Organizzazione eventi, pubblicita` e servizi per trasferta";999;"Altre spese per relazioni pubbliche, convegni e mostre, pubblicita` n.a.c";03-07-2018;
674;1;0;"9,43";"9,43";ECONOMO UNIONE MONTANA MAROSTICENSE (PIGATO ANTONELLA); ;Rimborso bolletta N.    18 del  27-04-18 RACCOMANDATA AR 1 GIORNO X INVIO A ROMA DEL BANDO CONCORSO UFF CED;03-07-2018;262;0;172;1;Spese correnti;3;Acquisto di beni e servizi;2;Acquisto di servizi;16;Servizi amministrativi;2;Spese postali;03-07-2018;
675;1;0;"11,83";"11,83";ECONOMO UNIONE MONTANA MAROSTICENSE (PIGATO ANTONELLA); ;Rimborso bolletta N.    23 del  09-05-18 RACCOMANDATA "1" X RESTITUZIONE N 1 PATENTE DI GUIDA ALLA MOTORIZZAZIONE CIVILE - VICENZA;03-07-2018;262;0;192;1;Spese correnti;3;Acquisto di beni e servizi;2;Acquisto di servizi;16;Servizi amministrativi;2;Spese postali;03-07-2018;
676;1;0;"5,20";"5,20";ECONOMO UNIONE MONTANA MAROSTICENSE (PIGATO ANTONELLA); ;Rimborso bolletta N.    24 del  10-05-18 SPEDIZIONE TELEGRAMMA DEL 09052018 - MITTENTE IL PRESIDENTE DEL CONSIGLIO DELL'UNIONE MONTANA MAROSTICENSE;03-07-2018;262;0;194;1;Spese correnti;3;Acquisto di beni e servizi;2;Acquisto di servizi;16;Servizi amministrativi;2;Spese postali;03-07-2018;
677;1;0;"40,30";"40,30";ECONOMO UNIONE MONTANA MAROSTICENSE (PIGATO ANTONELLA); ;Rimborso bolletta N.    26 del  22-05-18 ACQUISTO N. 10 CONF. MOD 23L ATTI GIUDIZIARI (G2);03-07-2018;401;0;22;1;Spese correnti;3;Acquisto di beni e servizi;1;Acquisto di beni;2;Altri beni di consumo;1;"Carta, cancelleria e stampati";03-07-2018;
679;1;0;"87,45";"87,45";ECONOMO UNIONE MONTANA MAROSTICENSE (PIGATO ANTONELLA); ;Rimborso bolletta N.    17 del  13-04-18 PAGAMENTO RIFORNIMENTO GPL FIAT TIPO TARGATA YA791AL - COMANDANTE CRESTANI VALTER;03-07-2018;400;0;154;1;Spese correnti;3;Acquisto di beni e servizi;1;Acquisto di beni;2;Altri beni di consumo;2;"Carburanti, combustibili e lubrificanti";03-07-2018;
680;1;0;"42,80";"42,80";ECONOMO UNIONE MONTANA MAROSTICENSE (PIGATO ANTONELLA); ;Rimborso bolletta N.    22 del  08-05-18 PAGAMENTO RIFORNIMENTO GPL FIAT TIPO TARGATA YA791AL - COMANDANTE CRESTANI VALTER;03-07-2018;400;0;175;1;Spese correnti;3;Acquisto di beni e servizi;1;Acquisto di beni;2;Altri beni di consumo;2;"Carburanti, combustibili e lubrificanti";03-07-2018;
681;1;0;"70,95";"70,95";ECONOMO UNIONE MONTANA MAROSTICENSE (PIGATO ANTONELLA); ;Rimborso bolletta N.    27 del  22-05-18 PAGAMENTO RIFORNIMENTO GPL FIAT TIPO TARGATA YA791AL - COMANDANTE CRESTANI VALTER;03-07-2018;400;0;211;1;Spese correnti;3;Acquisto di beni e servizi;1;Acquisto di beni;2;Altri beni di consumo;2;"Carburanti, combustibili e lubrificanti";03-07-2018;
682;1;0;"52,10";"52,10";ECONOMO UNIONE MONTANA MAROSTICENSE (PIGATO ANTONELLA); ;Rimborso bolletta N.    32 del  13-06-18 PAGAMENTO RIFORNIMENTO GPL FIAT TIPO TARGATA YA791AL - COMANDANTE CRESTANI VALTER;03-07-2018;400;0;225;1;Spese correnti;3;Acquisto di beni e servizi;1;Acquisto di beni;2;Altri beni di consumo;2;"Carburanti, combustibili e lubrificanti";03-07-2018;
683;1;0;"38,95";"38,95";ECONOMO UNIONE MONTANA MAROSTICENSE (PIGATO ANTONELLA); ;Rimborso bolletta N.    33 del  13-06-18 PAGAMENTO RIFORNIMENTO GPL FIAT TIPO TARGATA YA791AL - COMANDANTE CRESTANI VALTER;03-07-2018;400;0;239;1;Spese correnti;3;Acquisto di beni e servizi;1;Acquisto di beni;2;Altri beni di consumo;2;"Carburanti, combustibili e lubrificanti";03-07-2018;
684;1;0;"444,70";"444,70";TELECOM ITALIA S.P.A. - (TIM S.P.A.);ZE422929C4;SALDO Fatt.n. 7X02627576  del 14/06/2018 4BIM 2018: SERVIZI DI TELEFONIA MOBILE DENOMINATI "TIM SOLO DATI RICARICABILE MEPA" E "TIM EUROPA UNLIMETED MEPA";04-07-2018;231;0;103;1;Spese correnti;3;Acquisto di beni e servizi;2;Acquisto di servizi;5;Utenze e canoni;2;Telefonia mobile;04-07-2018;
685;1;0;"283,37";"283,37";SERVIZI SOCIALI LA GOCCIA  S.C.S.A R.L.;Z3420590EA;SALDO Fatt.n. 246/PA  del 26/06/2018 MESE DI MAGGIO 2018. PROGETTO VESTA ASSISTENZA SOCIALE BADANTI ED ANZIANI;05-07-2018;1660;0;364;1;Spese correnti;3;Acquisto di beni e servizi;2;Acquisto di servizi;11;Prestazioni professionali e specialistiche;2;"Assistenza psicologica, sociale e religiosa";05-07-2018;
686;1;0;"732,00";"732,00";AGENZIA MONTANARI TOUR;Z9C23B68EC;SALDO Fatt.n. 19/2018  del 12/06/2018 QUOTA ALBERGHIERA PER AIUTO ACCOMPAGNATORE PRIMO TURNO A BELLARIA;05-07-2018;1700;0;217;1;Spese correnti;3;Acquisto di beni e servizi;2;Acquisto di servizi;99;Altri servizi;999;Altri servizi diversi n.a.c.;05-07-2018;
687;1;0;"53,99";"53,99";AUTOLAVAGGIO MILLE LUNE DI COSTACURTA SIMONE;Z9C1E581FD;"SALDO Fatt.n. FATTPA 10_18  del 30/06/2018 SERVIZIO DI AUTOLAVAGGIO MEZZI IN USO ALLA POLIZIA LOCALI: FIAT TIPO TG YA791AL, OPEL ASTRA TG CY172MC, FIAT SEDICI TG YA777AC";05-07-2018;233;0;157;1;Spese correnti;3;Acquisto di beni e servizi;2;Acquisto di servizi;9;Manutenzione ordinaria e riparazioni;1;"Manutenzione ordinaria e riparazioni di mezzi di trasporto ad uso civile, di sicurezza e ordine pubblico";05-07-2018;
688;1;0;"20,00";"20,00";AUTOLAVAGGIO MILLE LUNE DI COSTACURTA SIMONE;Z9C1E581FD;SALDO Fatt.n. FATTPA 11_18  del 30/06/2018 SERVIZIO DI AUTOLAVAGGIO AUTOVETTURA DOBLO' TG DP800VP IN USO AI SERVIZI SOCIALI;05-07-2018;233;0;157;1;Spese correnti;3;Acquisto di beni e servizi;2;Acquisto di servizi;9;Manutenzione ordinaria e riparazioni;1;"Manutenzione ordinaria e riparazioni di mezzi di trasporto ad uso civile, di sicurezza e ordine pubblico";05-07-2018;
689;1;0;"200,00";"200,00";AGENZIA MONTANARI TOUR;ZCE23F965D;SALDO Fatt.n. 18/2018  del 12/06/2018 QUOTA ALBERGHIERA PRIMO TURNO MARE BELLARIA;05-07-2018;1700;0;242;1;Spese correnti;3;Acquisto di beni e servizi;2;Acquisto di servizi;99;Altri servizi;999;Altri servizi diversi n.a.c.;05-07-2018;
690;1;0;"142,00";"142,00";OMESSO NOMINATIVO NEL RISPETTO DELLA NORMATIVA SULLA PROTEZIONE DATI PERSONALI; ;SALDO Fatt.n. 18/13/3  del 20/06/2018 Progetto home care premium utente centro diurno Bizzotto Gianfranca;05-07-2018;1704;0;15;1;Spese correnti;3;Acquisto di beni e servizi;2;Acquisto di servizi;15;Contratti di servizio pubblico;9;Contratti di servizio di assistenza sociale domiciliare;05-07-2018;
691;1;0;"794,00";"794,00";RAMITOUR S.R.L.;Z2023F9F5A;SALDO Fatt.n. 24E  del 17/06/2018 Quota accompagnatore soggiorno Andalo dal 17.06 al 01.07.18;05-07-2018;1700;0;240;1;Spese correnti;3;Acquisto di beni e servizi;2;Acquisto di servizi;99;Altri servizi;999;Altri servizi diversi n.a.c.;05-07-2018;
692;1;0;"1.149,24";"1.149,24";OMEGA DI CANALE STEFANO;Z1822A9B53;SALDO Fatt.n. 5  del 03/07/2018 FORNITURA INVERTER PER GESTIONE CARICA BATTERIE PER IMP. FOTOVOLTAICO;05-07-2018;1374;0;107;1;Spese correnti;3;Acquisto di beni e servizi;1;Acquisto di beni;2;Altri beni di consumo;7;Altri materiali tecnico-specialistici non sanitari;05-07-2018;
693;1;0;"439,20";"439,20";OMEGA DI CANALE STEFANO;Z9222A97EE;SALDO Fatt.n. 6  del 03/07/2018 INTERVENTO DI MANUTENZIONE PRESSO CANNONE ANTIGRANDINE DI VALLONARA;05-07-2018;1410;0;111;1;Spese correnti;3;Acquisto di beni e servizi;2;Acquisto di servizi;99;Altri servizi;999;Altri servizi diversi n.a.c.;05-07-2018;
694;1;0;"468,44";"468,44";SCANAGATTA CARBURANTI SRL;Z1221C7BB3;SALDO Fatt.n. V3   21  del 30/06/2018 FORNITURA CARBURANTE MEZZI IN USO ALLA POLIZIA LOCALE MESE DI GIUGNO 2018;05-07-2018;400;0;44;1;Spese correnti;3;Acquisto di beni e servizi;1;Acquisto di beni;2;Altri beni di consumo;2;"Carburanti, combustibili e lubrificanti";05-07-2018;
695;1;0;"704,35";"704,35";SCANAGATTA CARBURANTI SRL;Z1221C7BB3;SALDO Fatt.n. V3  20  del 30/06/2018 FORNITURA CARBURANTE MEZZI IN USO AI SERVIZI SOCIALI MESE DI GIUGNO 2018;05-07-2018;1599;0;45;1;Spese correnti;3;Acquisto di beni e servizi;1;Acquisto di beni;2;Altri beni di consumo;2;"Carburanti, combustibili e lubrificanti";05-07-2018;
696;1;0;"53,64";"53,64";TELECOM ITALIA S.P.A. - (TIM S.P.A.); ;SALDO Fatt.n. 7X02575036  del 14/06/2018 4BIM 2018: identificativo contratto 888000540158;05-07-2018;231;0;141;1;Spese correnti;3;Acquisto di beni e servizi;2;Acquisto di servizi;5;Utenze e canoni;2;Telefonia mobile;05-07-2018;
697;1;0;"1.605,12";"1.605,12";COMUNE DI MAROSTICA; ;ACCONTO Fatt.n. 1/08  del 17/05/2018 Mensa dipendenti  periodo giugno 2016- dicembre 2016 - Mensa dipendenti intero anno 2017;05-07-2018;261;0;154;1;Spese correnti;3;Acquisto di beni e servizi;2;Acquisto di servizi;14;Servizi di ristorazione;2;Servizio mense personale civile;05-07-2018;
698;1;0;"64,20";"64,20";COMUNE DI MAROSTICA; ;SALDO Fatt.n. 1/08  del 17/05/2018 Mensa dipendenti  periodo giugno 2016- dicembre 2016 - Mensa dipendenti intero anno 2017;05-07-2018;261;0;154;1;Spese correnti;3;Acquisto di beni e servizi;2;Acquisto di servizi;14;Servizi di ristorazione;2;Servizio mense personale civile;05-07-2018;
699;1;0;"1.218,80";"2.437,60";S.A.P.A. s.r.l.;Z452268E5A;SALDO Fatt.n. 129/2018  del 25/06/2018 SERVIZIO NOLEGGIO AUTOBUS ANDATA-RITORNO (SCARICO GRUPPO) E ANDATA-RITORNO (RIENTRO GRUPPO) A IGEA MARINA PER SOGGIORNI CLIMATICI SECONDO TURNO.;05-07-2018;1700;0;90;1;Spese correnti;3;Acquisto di beni e servizi;2;Acquisto di servizi;99;Altri servizi;999;Altri servizi diversi n.a.c.;05-07-2018;
699;2;0;"1.218,80";"2.437,60";S.A.P.A. s.r.l.;Z452268E5A;SALDO Fatt.n. 127/2018  del 16/06/2018 SERVIZIO NOLEGGIO AUTOBUS ANDATA-RITORNO (SCARICO GRUPPO) E ANDATA-RITORNO (RIENTRO GRUPPO) A IGEA MARINA PER SOGGIORNI CLIMATICI PRIMO TURNO.;05-07-2018;1700;0;90;1;Spese correnti;3;Acquisto di beni e servizi;2;Acquisto di servizi;99;Altri servizi;999;Altri servizi diversi n.a.c.;05-07-2018;
700;1;0;"292,80";"292,80";F.A.P. DI MARCOLONGO LUIGI & C. SNC;ZAD2362766;SALDO Fatt.n. 94  del 05/07/2018 ABBIGLIAMENTO PER AGENTI POLIZIA LOCALE;11-07-2018;403;0;182;1;Spese correnti;3;Acquisto di beni e servizi;1;Acquisto di beni;2;Altri beni di consumo;4;Vestiario;11-07-2018;
701;1;0;"5,88";"5,88";COMUNE DI THIENE;0000000000;ASSUNZIONE IMPEGNO DI SPESA PER RIMBORSO SPESE DI NOTIFICA ANNO 2018;11-07-2018;273;0;123;1;Spese correnti;4;Trasferimenti correnti;1;Trasferimenti correnti a Amministrazioni Pubbliche;2;Trasferimenti correnti a Amministrazioni Locali;3;Trasferimenti correnti a Comuni;11-07-2018;
702;1;0;"148,84";"317,20";EDIT GRAF DI ISEPPI STEFANO;ZCB221E6EC;SALDO Fatt.n. 2/579  del 18/06/2018 FORNITURA RISME E STAMPATI;11-07-2018;250;0;99;1;Spese correnti;3;Acquisto di beni e servizi;1;Acquisto di beni;2;Altri beni di consumo;1;"Carta, cancelleria e stampati";11-07-2018;
702;2;0;"168,36";"317,20";EDIT GRAF DI ISEPPI STEFANO;ZCB221E6EC;SALDO Fatt.n. 2/581  del 18/06/2018 FORNITURA BLOCCHI BUONO D'ORDINE;11-07-2018;250;0;99;1;Spese correnti;3;Acquisto di beni e servizi;1;Acquisto di beni;2;Altri beni di consumo;1;"Carta, cancelleria e stampati";11-07-2018;
703;1;0;"83,81";"83,81";EDIT GRAF DI ISEPPI STEFANO;ZDC1ED0254;SALDO Fatt.n. 2/589  del 19/06/2018 FORNITURA TONER PLOTTER URBANISTICA COLORE CIANO;11-07-2018;250;0;198;1;Spese correnti;3;Acquisto di beni e servizi;1;Acquisto di beni;2;Altri beni di consumo;1;"Carta, cancelleria e stampati";11-07-2018;
704;1;0;"14,47";"435,34";TELECOM ITALIA S.P.A. - (TIM S.P.A.); ;SALDO Fatt.n. 8E00503975  del 06/06/2018 4BIM 2018: identificativo contratto 0424479300;11-07-2018;231;0;140;1;Spese correnti;3;Acquisto di beni e servizi;2;Acquisto di servizi;5;Utenze e canoni;1;Telefonia fissa;11-07-2018;
704;2;0;"106,59";"435,34";TELECOM ITALIA S.P.A. - (TIM S.P.A.); ;SALDO Fatt.n. 8E00499376  del 06/06/2018 4BIM 2018: identificativo contratto 0424472255;11-07-2018;231;0;140;1;Spese correnti;3;Acquisto di beni e servizi;2;Acquisto di servizi;5;Utenze e canoni;1;Telefonia fissa;11-07-2018;
704;3;0;"314,28";"435,34";TELECOM ITALIA S.P.A. - (TIM S.P.A.); ;SALDO Fatt.n. 8E00508229  del 06/06/2018 4BIM 2018: identificativo contratto 042472144. LINEA ISDN;11-07-2018;231;0;140;1;Spese correnti;3;Acquisto di beni e servizi;2;Acquisto di servizi;5;Utenze e canoni;1;Telefonia fissa;11-07-2018;
705;1;0;"85,40";"85,40";BLU SERVICE S.R.L.;Z13232653B;SALDO Fatt.n. 652/PA  del 30/06/2018 FORNITURA BOCCIONI E BICCHIERI;11-07-2018;401;0;156;1;Spese correnti;3;Acquisto di beni e servizi;1;Acquisto di beni;2;Altri beni di consumo;999;Altri beni e materiali di consumo n.a.c.;11-07-2018;
706;1;0;"778,36";"778,36";CITTA' INFORMATICA MAROSTICA BROLLO FLAVIO;Z121CC040D;SALDO Fatt.n. FATTPA 10_18  del 26/06/2018 SERVIZIO DI COLLABORAZIONE PER INTERVENTI SU POSTAZIONI;11-07-2018;264;0;415;1;Spese correnti;3;Acquisto di beni e servizi;2;Acquisto di servizi;19;Servizi informatici e di telecomunicazioni;1;Gestione e manutenzione applicazioni;11-07-2018;
707;1;0;"1.238,30";"1.238,30";F.G.S. S.R.L.;Z3C23D25AC;SALDO Fatt.n. 80173  del 20/06/2018 CANONE SECONDO SEMESTRE 2018;11-07-2018;506;0;228;1;Spese correnti;3;Acquisto di beni e servizi;2;Acquisto di servizi;9;Manutenzione ordinaria e riparazioni;4;Manutenzione ordinaria e riparazioni di impianti e macchinari;11-07-2018;
708;1;0;"308,00";"308,00";RAMITOUR S.R.L.;Z8F23F960D;SALDO Fatt.n. 25E  del 17/06/2018 Quota supplemento camere sogg Andalo dal 17.06 al 01.07.18;11-07-2018;1703;0;264;1;Spese correnti;3;Acquisto di beni e servizi;2;Acquisto di servizi;99;Altri servizi;999;Altri servizi diversi n.a.c.;11-07-2018;
709;1;0;"2.835,00";"2.835,00";ADELANTE SOCIETA' COOPERATIVA SOCIALE ONLUS;Z3820C5D58;SALDO Fatt.n. 133E  del 30/06/2018 Gestione "Sportello Informalavoro" primo semestre 2018;11-07-2018;1760;0;2;1;Spese correnti;3;Acquisto di beni e servizi;2;Acquisto di servizi;11;Prestazioni professionali e specialistiche;2;"Assistenza psicologica, sociale e religiosa";11-07-2018;
710;1;0;"14.710,00";"14.710,00";F.G.S. S.R.L.;Z7D216351E;ACCONTO Fatt.n. 80135  del 18/05/2018 MODERNIZZAZIONE ED ADEGUAMENTO IMPIANTO DI VIDEOSORVEGLIANZA URBANA;11-07-2018;2207;0;400;2;Spese in conto capitale;2;Investimenti fissi lordi e acquisto di terreni;1;Beni materiali;7;Hardware;999;Hardware n.a.c.;11-07-2018;
711;1;0;"2.933,64";"2.933,64";F.G.S. S.R.L.;Z7D216351E;SALDO Fatt.n. 80135  del 18/05/2018 MODERNIZZAZIONE ED ADEGUAMENTO IMPIANTO DI VIDEOSORVEGLIANZA URBANA;11-07-2018;2213;0;401;2;Spese in conto capitale;2;Investimenti fissi lordi e acquisto di terreni;1;Beni materiali;7;Hardware;999;Hardware n.a.c.;11-07-2018;
712;1;0;"5.734,00";"5.734,00";MAGGIOLI SPA;Z4A241E358;SALDO Fatt.n. 0002129920  del 30/06/2018 CANONE DI ASSISTENZA E MANUTENZIONE PER SW J-IRIDE PROTOCOLLO;11-07-2018;264;0;260;1;Spese correnti;3;Acquisto di beni e servizi;2;Acquisto di servizi;19;Servizi informatici e di telecomunicazioni;1;Gestione e manutenzione applicazioni;11-07-2018;
713;1;0;"2.758,11";"2.758,11";ABACO SPA;Z5A1887E2F;ACCONTO Fatt.n. 2018140001751  del 05/07/2018 SERVIZIO CONCESSIONE DELLA RISCOSSIONE COATTIVA DEI TRIBUTI E DELLE ENTRATE;11-07-2018;202;0;43;1;Spese correnti;3;Acquisto di beni e servizi;2;Acquisto di servizi;3;Aggi di riscossione;999;Altri aggi di riscossione n.a.c.;11-07-2018;
714;1;0;"1.040,59";"1.040,59";ABACO SPA;Z5A1887E2F;SALDO Fatt.n. 2018140001751  del 05/07/2018 SERVIZIO CONCESSIONE DELLA RISCOSSIONE COATTIVA DEI TRIBUTI E DELLE ENTRATE;11-07-2018;202;0;198;1;Spese correnti;3;Acquisto di beni e servizi;2;Acquisto di servizi;3;Aggi di riscossione;999;Altri aggi di riscossione n.a.c.;11-07-2018;
715;1;0;"100,00";"100,00";CRESTANI VALTER;0000000000;ASSUNZIONE IMPEGNO DI SPESA PER ACQUISTO RICARICHE TELEFONICHE CANNONI ANTIGRANDINE E CELLULARI DI SERVIZIO ANNO 2018;13-07-2018;1374;0;110;1;Spese correnti;3;Acquisto di beni e servizi;1;Acquisto di beni;2;Altri beni di consumo;999;Altri beni e materiali di consumo n.a.c.;13-07-2018;
745;1;0;"105,40";"105,40";PERSONALE DIPENDENTI UFFICI DIVERSI; ;STIPENDI MESE DI: GIUGNO 18;17-07-2018;249;0;151;1;Spese correnti;3;Acquisto di beni e servizi;2;Acquisto di servizi;2;"Organizzazione eventi, pubblicita` e servizi per trasferta";2;Indennità di missione e di trasferta;17-07-2018;
746;1;0;"74,33";"74,33";PERSONALE DIPENDENTI UFFICI DIVERSI; ;STIPENDI MESE DI: GIUGNO 18;17-07-2018;261;0;168;1;Spese correnti;3;Acquisto di beni e servizi;2;Acquisto di servizi;14;Servizi di ristorazione;2;Servizio mense personale civile;17-07-2018;
787;1;0;"78,01";"78,01";EDIT GRAF DI ISEPPI STEFANO;ZDC1ED0254;SALDO Fatt.n. 2/656  del 16/07/2018 FORNITURA CARTUCCIA NERO FOTO HP 727 COD B3P23A;09-08-2018;250;0;198;1;Spese correnti;3;Acquisto di beni e servizi;1;Acquisto di beni;2;Altri beni di consumo;1;"Carta, cancelleria e stampati";09-08-2018;
788;1;0;"70,27";"162,93";EDIT GRAF DI ISEPPI STEFANO;ZC2221E57A;SALDO Fatt.n. 2/640  del 04/07/2018 FORNITURA N. 3 CAMPANE DVD+RW;09-08-2018;250;0;46;1;Spese correnti;3;Acquisto di beni e servizi;1;Acquisto di beni;2;Altri beni di consumo;1;"Carta, cancelleria e stampati";09-08-2018;
788;2;0;"92,66";"162,93";EDIT GRAF DI ISEPPI STEFANO;ZC2221E57A;SALDO Fatt.n. 2/580  del 18/06/2018 FORNITURA MATERIALE DI CANCELLERIA;09-08-2018;250;0;46;1;Spese correnti;3;Acquisto di beni e servizi;1;Acquisto di beni;2;Altri beni di consumo;1;"Carta, cancelleria e stampati";09-08-2018;
789;1;0;"229,36";"229,36";EDIT GRAF DI ISEPPI STEFANO;Z4623E78AB;SALDO Fatt.n. 2/582  del 18/06/2018 FORNITURA TESSERE PARCHEGGIO INVALIDI;09-08-2018;401;0;238;1;Spese correnti;3;Acquisto di beni e servizi;1;Acquisto di beni;2;Altri beni di consumo;1;"Carta, cancelleria e stampati";09-08-2018;
790;1;0;"2.806,00";"2.806,00";STT S.R.L.;Z0123D2575;SALDO Fatt.n. 172/E  del 29/06/2018 AGGIORNAMENTO SISTEMA OPERATIVO IMPIANTO VIDEOSORVEGLIANZA 1^ LOTTO - CIG. Z0123D2575;09-08-2018;506;0;233;1;Spese correnti;3;Acquisto di beni e servizi;2;Acquisto di servizi;9;Manutenzione ordinaria e riparazioni;4;Manutenzione ordinaria e riparazioni di impianti e macchinari;09-08-2018;
791;1;0;"3.294,00";"3.294,00";PAL INFORMATICA SRL;ZAD2329E6D;SALDO Fatt.n. 335/M  del 13/07/2018 SOLUZIONE APPLICATIVA PER IL PROGETTO SIOPE - OPI PER IL COMUNE DI MAROSTICA -  CIG. ZAD2329E6D;09-08-2018;264;0;158;1;Spese correnti;3;Acquisto di beni e servizi;2;Acquisto di servizi;19;Servizi informatici e di telecomunicazioni;1;Gestione e manutenzione applicazioni;09-08-2018;
792;1;0;"976,00";"976,00";PAL INFORMATICA SRL;Z942329D92;"SALDO Fatt.n. 336/M  del 13/07/2018 ACQUISIZIONE DALLA DITTA PAL INFORMATICA SRL, TRAMITE MEPA, DEL SERVIZIO DI CONSERVAZIONE DEGLI ORDINATIVI INFORMATICI - OPI PER IL COMUNE DI MAROSTICA  Z942329D92";09-08-2018;264;0;159;1;Spese correnti;3;Acquisto di beni e servizi;2;Acquisto di servizi;19;Servizi informatici e di telecomunicazioni;7;Servizi di gestione documentale;09-08-2018;
793;1;0;"27,97";"173,49";NIVI CREDIT S.R.L.;ZA21ECF1B7;SALDO Fatt.n. 4548E  del 30/06/2018 LA NOTIFICA E GESTIONE DI SANZIONI AMMINISTRATIVE EMESSE PER INFRAZIONI AL CODICE DELLA STRADA NEI CONFRONTI DI CITTADINI STRANIERI RESIDENTI ALL'ESTERO;09-08-2018;509;0;200;1;Spese correnti;3;Acquisto di beni e servizi;2;Acquisto di servizi;16;Servizi amministrativi;999;Altre spese per servizi amministrativi;09-08-2018;
793;2;0;"59,01";"173,49";NIVI CREDIT S.R.L.;ZA21ECF1B7;SALDO Fatt.n. 4547E  del 30/06/2018 LA NOTIFICA E GESTIONE DI SANZIONI AMMINISTRATIVE EMESSE PER INFRAZIONI AL CODICE DELLA STRADA NEI CONFRONTI DI CITTADINI STRANIERI RESIDENTI ALL'ESTERO;09-08-2018;509;0;200;1;Spese correnti;3;Acquisto di beni e servizi;2;Acquisto di servizi;16;Servizi amministrativi;999;Altre spese per servizi amministrativi;09-08-2018;
793;3;0;"86,51";"173,49";NIVI CREDIT S.R.L.;ZA21ECF1B7;SALDO Fatt.n. 4546E  del 30/06/2018 NOTIFICA E GESTIONE DI SANZIONI AMMINISTRATIVE EMESSE PER INFRAZIONI AL CODICE DELLA STRADA NEI CONFRONTI DI CITTADINI STRANIERI RESIDENTI ALL'ESTERO;09-08-2018;509;0;200;1;Spese correnti;3;Acquisto di beni e servizi;2;Acquisto di servizi;16;Servizi amministrativi;999;Altre spese per servizi amministrativi;09-08-2018;
794;1;0;"341,60";"341,60";PASUBIO TECNOLOGIA S.R.L.;ZF123C12E7;SALDO Fatt.n. E-308  del 24/05/2018 SERVIZIO DI MANUTENZIONE E HOSTING DEL SITO MY PORTAL DEL COMUNE DI MAROSTICA PER L'ANNO 2018.;09-08-2018;264;0;219;1;Spese correnti;3;Acquisto di beni e servizi;2;Acquisto di servizi;19;Servizi informatici e di telecomunicazioni;1;Gestione e manutenzione applicazioni;09-08-2018;
795;1;0;"1.098,00";"1.098,00";TELEMAR S.P.A.;Z4B2189738;SALDO Fatt.n. 239/18-e  del 17/07/2018 SERVIZI CONNETTIVITA' 2018  CIG Z4B2189738;09-08-2018;265;0;433;1;Spese correnti;3;Acquisto di beni e servizi;2;Acquisto di servizi;19;Servizi informatici e di telecomunicazioni;4;Servizi di rete per trasmissione dati e VoIP e relativa manutenzione;09-08-2018;
796;1;0;"1.509,14";"1.509,14";S.A.I.E.S. SRL;Z41241D818;SALDO Fatt.n. 65  del 12/07/2018 INTEGRAZIONE ESTENSIONE CONNESSIONE IN FIBRA OTTICA  MUNICIPIO - OPIFICIO - CIG Z41241D818;09-08-2018;2151;0;249;2;Spese in conto capitale;2;Investimenti fissi lordi e acquisto di terreni;1;Beni materiali;7;Hardware;999;Hardware n.a.c.;09-08-2018;
797;1;0;"256,20";"256,20";AUTOFFICINA ELETTRAUTO PIZZATO ENZO;ZAF1D259E7;SALDO Fatt.n. 00039  del 30/07/2018 MANUTENZIONE FIAT SEDICI TG. YA777AC;09-08-2018;233;0;117;1;Spese correnti;3;Acquisto di beni e servizi;2;Acquisto di servizi;9;Manutenzione ordinaria e riparazioni;1;"Manutenzione ordinaria e riparazioni di mezzi di trasporto ad uso civile, di sicurezza e ordine pubblico";09-08-2018;
798;1;0;"381,75";"381,75";SCANAGATTA CARBURANTI SRL;Z1221C7BB3;SALDO Fatt.n. V3  23  del 31/07/2018 FORNITURA CARBURANTE AUTOMEZZI POLIZIA LOCALE LUGLIO 2018;09-08-2018;400;0;44;1;Spese correnti;3;Acquisto di beni e servizi;1;Acquisto di beni;2;Altri beni di consumo;2;"Carburanti, combustibili e lubrificanti";09-08-2018;
799;1;0;"668,08";"668,08";SCANAGATTA CARBURANTI SRL;Z1221C7BB3;SALDO Fatt.n. V3  22  del 31/07/2018 FORNITURA CARBURANTE AUTOMEZZI SERVIZI SOCIALI LUGLIO 2018;09-08-2018;1599;0;45;1;Spese correnti;3;Acquisto di beni e servizi;1;Acquisto di beni;2;Altri beni di consumo;2;"Carburanti, combustibili e lubrificanti";09-08-2018;
800;1;0;"23,52";"23,52";COMUNE DI MARANO VICENTINO;0000000000;SPESA PER RIMBORSO SPESE DI NOTIFICA ANNO 2018;09-08-2018;273;0;123;1;Spese correnti;4;Trasferimenti correnti;1;Trasferimenti correnti a Amministrazioni Pubbliche;2;Trasferimenti correnti a Amministrazioni Locali;3;Trasferimenti correnti a Comuni;09-08-2018;
801;1;0;"228.003,00";"228.003,00";AZIENDA ULSS N. 7 PEDEMONTANA; ;SALDO Fatt.n. 006/621  del 10/07/2018 QUOTE ASSOCIATIVE ANNO 2018 ACCONTO;09-08-2018;1701;0;241;1;Spese correnti;3;Acquisto di beni e servizi;2;Acquisto di servizi;99;Altri servizi;999;Altri servizi diversi n.a.c.;09-08-2018;
857;1;0;"396,92";"2.364,24";COM METODI S.P.A.;ZDD1A11CA6;SALDO Fatt.n. FV18-1817  del 25/06/2018 GESTIONE PSS PERIODO 01/0/2018-31/03/2018;16-08-2018;259;0;156;1;Spese correnti;3;Acquisto di beni e servizi;2;Acquisto di servizi;4;Acquisto di servizi per formazione e addestramento del personale dell'ente;4;Acquisto di servizi per formazione obbligatoria;16-08-2018;
857;2;0;"1.967,32";"2.364,24";COM METODI S.P.A.;ZDD1A11CA6;SALDO Fatt.n. FV18-1816  del 25/06/2018 SERVIZI TECNICI PERIODO 01/01/2018-31/03/2018;16-08-2018;259;0;156;1;Spese correnti;3;Acquisto di beni e servizi;2;Acquisto di servizi;4;Acquisto di servizi per formazione e addestramento del personale dell'ente;4;Acquisto di servizi per formazione obbligatoria;16-08-2018;
858;1;0;"2.078,21";"4.407,64";SERVIZI SOCIALI LA GOCCIA  S.C.S.A R.L.;610826186E;SALDO Fatt.n. 285/PA  del 30/06/2018 SERVIZIO DI ASSISTENZA SOCIALE GIUGNO 2018;16-08-2018;1610;0;30;1;Spese correnti;3;Acquisto di beni e servizi;2;Acquisto di servizi;15;Contratti di servizio pubblico;9;Contratti di servizio di assistenza sociale domiciliare;16-08-2018;
858;2;0;"2.329,43";"4.407,64";SERVIZI SOCIALI LA GOCCIA  S.C.S.A R.L.;610826186E;SALDO Fatt.n. 233/PA  del 26/06/2018 SERVIZIO DI ASSISTENZA SOCIALE MESE DI MAGGIO 2018;16-08-2018;1610;0;30;1;Spese correnti;3;Acquisto di beni e servizi;2;Acquisto di servizi;15;Contratti di servizio pubblico;9;Contratti di servizio di assistenza sociale domiciliare;16-08-2018;
859;1;0;"3.179,69";"3.179,69";SERVIZI SOCIALI LA GOCCIA  S.C.S.A R.L.;610826186E;SALDO Fatt.n. 286/PA  del 30/06/2018 SERVIZIO DI ASSISTENZA DOMICILIARE ANZIANI MESE DI GIUGNO 2018;16-08-2018;1610;0;30;1;Spese correnti;3;Acquisto di beni e servizi;2;Acquisto di servizi;15;Contratti di servizio pubblico;9;Contratti di servizio di assistenza sociale domiciliare;16-08-2018;
860;1;0;"647,90";"1.439,90";S.A.P.A. s.r.l.;Z452268E5A;SALDO Fatt.n. 139/2018  del 07/07/2018 SERVIZIO DI TRASPORTO PER I SOGGIORNI CLIMATICI PER ANZIANI - CAORLE -;16-08-2018;1700;0;90;1;Spese correnti;3;Acquisto di beni e servizi;2;Acquisto di servizi;99;Altri servizi;999;Altri servizi diversi n.a.c.;16-08-2018;
860;2;0;"792,00";"1.439,90";S.A.P.A. s.r.l.;Z452268E5A;SALDO Fatt.n. 138/2018  del 02/07/2018 SERVIZIO DI TRASPORTO PER I SOGGIORNI CLIMATICI PER ANZIANI - ANDALO -;16-08-2018;1700;0;90;1;Spese correnti;3;Acquisto di beni e servizi;2;Acquisto di servizi;99;Altri servizi;999;Altri servizi diversi n.a.c.;16-08-2018;
861;1;0;"4.146,85";"4.146,85";SERENISSIMA RISTORAZIONE S.P.A.;7288762CAB;SALDO Fatt.n. 04521/4  del 30/06/2018 FORNITURA PASTI DOMICILIARI MESE DI GIUGNO 2018;16-08-2018;1704;0;33;1;Spese correnti;3;Acquisto di beni e servizi;2;Acquisto di servizi;15;Contratti di servizio pubblico;9;Contratti di servizio di assistenza sociale domiciliare;16-08-2018;
862;1;0;"142,00";"142,00";OMESSO NOMINATIVO NEL RISPETTO DELLA NORMATIVA SULLA PROTEZIONE DATI PERSONALI; ;SALDO Fatt.n. 20/13/3  del 25/07/2018 mese di giugno 2018 quota progetto Home care Premium utente centro diurno Bizzotto Gianfranca;16-08-2018;1704;0;15;1;Spese correnti;3;Acquisto di beni e servizi;2;Acquisto di servizi;15;Contratti di servizio pubblico;9;Contratti di servizio di assistenza sociale domiciliare;16-08-2018;
863;1;0;"222,04";"222,04";GRAFICHE NOVESI;Z3E24636FB;SALDO Fatt.n. 2/6  del 27/07/2018 FORNITURA DI MATERIALE E STAMPE PER IL PROGRAMMA INIZIATIVE RICREATIVO-CULTURALI PER ANZIANI;16-08-2018;1703;0;270;1;Spese correnti;3;Acquisto di beni e servizi;2;Acquisto di servizi;99;Altri servizi;999;Altri servizi diversi n.a.c.;16-08-2018;
864;1;0;"1.500,00";"1.500,00";QUESTA CITTA' - ASSOCIAZIONE DI CITTADINI VOLONTARI;Z432208F61;GESTIONE SPORTELLO SOCIALE "SPAZIO DONNA2. ACCONTO 2018;16-08-2018;1716;0;41;1;Spese correnti;3;Acquisto di beni e servizi;2;Acquisto di servizi;11;Prestazioni professionali e specialistiche;2;"Assistenza psicologica, sociale e religiosa";16-08-2018;
865;1;0;"400,00";"400,00";IMPERATORI ELIDE; ;INCARICO DI PRESIDENTE E INDIVIDUAZIONE COMPONENTI DELLA COMMISSIONE GIUDICATRICE 28^ EDIZIONE INVITO ALLA POESIA E ALLA NARRATIVA - ANNO 2018;16-08-2018;1703;0;143;1;Spese correnti;3;Acquisto di beni e servizi;2;Acquisto di servizi;99;Altri servizi;5;Spese per commissioni e comitati dell'Ente;16-08-2018;
866;1;0;"700,00";"700,00";BAGNARA PASQUA; ;INCARICO PER LE FIGURE DI ACCOMPAGNATORE AI SOGGIORNI CLIMATICI PER ANZIANI - ESTATE 2018 SOGGIORNO 2/6-16/6/2018;16-08-2018;1700;0;199;1;Spese correnti;3;Acquisto di beni e servizi;2;Acquisto di servizi;99;Altri servizi;999;Altri servizi diversi n.a.c.;16-08-2018;
867;1;0;"1.000,00";"1.000,00";FABRIS MICHAEL; ;INCARICO PER LE FIGURE DI ACCOMPAGNATORE AI SOGGIORNI CLIMATICI PER ANZIANI - ESTATE 2018 2/6/2018-16/6/2018 E 23/6/2018-7/7/2018;16-08-2018;1700;0;200;1;Spese correnti;3;Acquisto di beni e servizi;2;Acquisto di servizi;99;Altri servizi;999;Altri servizi diversi n.a.c.;16-08-2018;
868;1;0;"700,00";"700,00";BONOTTO LINA; ;INCARICO PER LE FIGURE DI ACCOMPAGNATORE AI SOGGIORNI CLIMATICI PER ANZIANI - ESTATE 2018;16-08-2018;1700;0;201;1;Spese correnti;3;Acquisto di beni e servizi;2;Acquisto di servizi;99;Altri servizi;999;Altri servizi diversi n.a.c.;16-08-2018;
869;1;0;"500,00";"500,00";VOLPATO ALFIO; ;LIQUIDAZIONE PER PRESTAZIONE DI ACCOMPAGNATORE AI SOGGIORNI CLIMATICI PER ANZIANI - ESTATE 2018;16-08-2018;1700;0;202;1;Spese correnti;3;Acquisto di beni e servizi;2;Acquisto di servizi;99;Altri servizi;999;Altri servizi diversi n.a.c.;16-08-2018;
870;1;0;"700,00";"700,00";VOLPATO CATERINA IVANA; ;INCARICO PER LE FIGURE DI ACCOMPAGNATORE AI SOGGIORNI CLIMATICI PER ANZIANI - ESTATE 2018;16-08-2018;1700;0;203;1;Spese correnti;3;Acquisto di beni e servizi;2;Acquisto di servizi;99;Altri servizi;999;Altri servizi diversi n.a.c.;16-08-2018;
871;1;0;"700,00";"700,00";GIACCHIN ROSALIA; ;INCARICO PER LE FIGURE DI ACCOMPAGNATORE AI SOGGIORNI CLIMATICI PER ANZIANI - ESTATE 2018;16-08-2018;1700;0;204;1;Spese correnti;3;Acquisto di beni e servizi;2;Acquisto di servizi;99;Altri servizi;999;Altri servizi diversi n.a.c.;16-08-2018;
872;1;0;"80,00";"80,00";BUDA GIUSEPPE; ;IMPEGNO DI SPESA A FAVORE DEI COMMISSARI ESTERNI DELLA COMMISSIONE DI GARA PER L'AFFIDAMENTO DEL SERVIZIO EDUCATIVO DOMICILIARE (S.E.D.) E TERRITORIALE IN FAVORE DI MINORI - PERIODO 02/05/2018 - 30/04/2020.;16-08-2018;1611;0;246;1;Spese correnti;3;Acquisto di beni e servizi;2;Acquisto di servizi;11;Prestazioni professionali e specialistiche;999;Altre prestazioni professionali e specialistiche n.a.c.;16-08-2018;
873;1;0;"80,00";"80,00";SARTORI SILVIA; ;IMPEGNO DI SPESA A FAVORE DEI COMMISSARI ESTERNI DELLA COMMISSIONE DI GARA PER L'AFFIDAMENTO DEL SERVIZIO EDUCATIVO DOMICILIARE (S.E.D.) E TERRITORIALE IN FAVORE DI MINORI - PERIODO 02/05/2018 - 30/04/2020.;16-08-2018;1611;0;247;1;Spese correnti;3;Acquisto di beni e servizi;2;Acquisto di servizi;11;Prestazioni professionali e specialistiche;999;Altre prestazioni professionali e specialistiche n.a.c.;16-08-2018;
874;1;0;"107,85";"1.131,43";AUTOFFICINA ELETTRAUTO PIZZATO ENZO;ZAF1D259E7;SALDO Fatt.n. 00040  del 30/07/2018 RIPARAZIONE AUTOMEZZI POLIZIA LOCALE: SKODA YETI TG. YA652AL;16-08-2018;233;0;117;1;Spese correnti;3;Acquisto di beni e servizi;2;Acquisto di servizi;9;Manutenzione ordinaria e riparazioni;1;"Manutenzione ordinaria e riparazioni di mezzi di trasporto ad uso civile, di sicurezza e ordine pubblico";16-08-2018;
874;2;0;"411,14";"1.131,43";AUTOFFICINA ELETTRAUTO PIZZATO ENZO;ZAF1D259E7;SALDO Fatt.n. 00041  del 30/07/2018 SERVIZIO DI RIPARAZIONE AUTOMEZZI POLIZIA LOCALE: LAND ROVER TG. ZA773PT;16-08-2018;233;0;117;1;Spese correnti;3;Acquisto di beni e servizi;2;Acquisto di servizi;9;Manutenzione ordinaria e riparazioni;1;"Manutenzione ordinaria e riparazioni di mezzi di trasporto ad uso civile, di sicurezza e ordine pubblico";16-08-2018;
874;3;0;"612,44";"1.131,43";AUTOFFICINA ELETTRAUTO PIZZATO ENZO;ZAF1D259E7;SALDO Fatt.n. 00042  del 30/07/2018 SERVIZIO DI RIPARAZIONE AUTOMEZZI POLIZIA LOCALE: LAND ROVER TG. ZA773PT;16-08-2018;233;0;117;1;Spese correnti;3;Acquisto di beni e servizi;2;Acquisto di servizi;9;Manutenzione ordinaria e riparazioni;1;"Manutenzione ordinaria e riparazioni di mezzi di trasporto ad uso civile, di sicurezza e ordine pubblico";16-08-2018;
880;1;0;"154,00";"154,00";FIORERIA BAGNARA DI GIACOMAZZI ROBERTO;Z3B23A6668;SALDO Fatt.n. 00001/02  del 10/08/2018 FORNITURA MAZZO DI FIORI;27-08-2018;1703;0;212;1;Spese correnti;3;Acquisto di beni e servizi;2;Acquisto di servizi;99;Altri servizi;11;Servizi per attivita` di rappresentanza;27-08-2018;
881;1;0;"1.020,00";"1.020,00";RAMITOUR S.R.L.;Z8A23F95AF;SALDO Fatt.n. 31E  del 23/06/2018 Quota soggiorno Caorle dal  23.06 al 07.07.2018;27-08-2018;1703;0;244;1;Spese correnti;3;Acquisto di beni e servizi;2;Acquisto di servizi;99;Altri servizi;999;Altri servizi diversi n.a.c.;27-08-2018;
882;1;0;"422,73";"422,73";ASOLA E BOTTONE DI BONATO BORTOLO;ZE422A8EA8;SALDO Fatt.n. 2/2018  del 31/07/2018 ACQUISTO N. 7 BOMBOLE DI GPL PER IL FUNZIONAMENTO DEGLI IMPIANTI ANTIGRANDINE;27-08-2018;1374;0;109;1;Spese correnti;3;Acquisto di beni e servizi;1;Acquisto di beni;2;Altri beni di consumo;999;Altri beni e materiali di consumo n.a.c.;27-08-2018;
883;1;0;"39,78";"105,00";NIVI CREDIT S.R.L.;ZA21ECF1B7;SALDO Fatt.n. 5292E  del 31/07/2018 RIMBORSO SPESE PROCEDURA EMO;27-08-2018;509;0;200;1;Spese correnti;3;Acquisto di beni e servizi;2;Acquisto di servizi;16;Servizi amministrativi;999;Altre spese per servizi amministrativi;27-08-2018;
883;2;0;"65,22";"105,00";NIVI CREDIT S.R.L.;ZA21ECF1B7;SALDO Fatt.n. 5293E  del 31/07/2018 FATTURA CORRISPETTIVI;27-08-2018;509;0;200;1;Spese correnti;3;Acquisto di beni e servizi;2;Acquisto di servizi;16;Servizi amministrativi;999;Altre spese per servizi amministrativi;27-08-2018;
884;1;0;"65,98";"65,98";AUTOLAVAGGIO MILLE LUNE DI COSTACURTA SIMONE;Z9C1E581FD;"SALDO Fatt.n. FATTPA 12_18  del 31/07/2018 LAVAGGIO E PULIZIA AUTOVETTURE IN USO ALLA POLIZA MUNICIPALE: TARGHE YA652AL, YA791AL, YA777AC";27-08-2018;233;0;157;1;Spese correnti;3;Acquisto di beni e servizi;2;Acquisto di servizi;9;Manutenzione ordinaria e riparazioni;1;"Manutenzione ordinaria e riparazioni di mezzi di trasporto ad uso civile, di sicurezza e ordine pubblico";27-08-2018;
885;1;0;"121,57";"121,57";ALFA ANTINCENDIO S.R.L.;ZA11F6B1B8;SALDO Fatt.n. 106  del 18/07/2018 CONTROLLO SEMESTRALE ESTINTORI;27-08-2018;236;0;239;1;Spese correnti;3;Acquisto di beni e servizi;2;Acquisto di servizi;9;Manutenzione ordinaria e riparazioni;5;Manutenzione ordinaria e riparazioni di attrezzature;27-08-2018;
886;1;0;"1.390,80";"1.390,80";FORINT SPA;Z7B22F7AB1;SALDO Fatt.n. 2018H00536  del 30/06/2018 FORNITURA ABBIGLIAMENTO POLIZA LOCALE;27-08-2018;403;0;127;1;Spese correnti;3;Acquisto di beni e servizi;1;Acquisto di beni;2;Altri beni di consumo;4;Vestiario;27-08-2018;
887;1;0;"384,30";"3.409,90";OMEGA DI CANALE STEFANO;Z9222A97EE;SALDO Fatt.n. 7  del 26/07/2018 INTERVENTO RICERCA GUASTO E RIPARAZIONE CANNONE VALLONARA;27-08-2018;1410;0;111;1;Spese correnti;3;Acquisto di beni e servizi;2;Acquisto di servizi;99;Altri servizi;999;Altri servizi diversi n.a.c.;27-08-2018;
887;2;0;"3.025,60";"3.409,90";OMEGA DI CANALE STEFANO;Z9222A97EE;SALDO Fatt.n. 8  del 26/07/2018 FORNITURA MATERIALE PER RIPARAZIONI CANNONI ANTIGRANDINE;27-08-2018;1410;0;111;1;Spese correnti;3;Acquisto di beni e servizi;2;Acquisto di servizi;99;Altri servizi;999;Altri servizi diversi n.a.c.;27-08-2018;
888;1;0;"266,70";"3.293,33";OPEN SOFTWARE S.R.L.;ZBB2011AC7;SALDO Fatt.n. 002941  del 30/06/2018 ANTICIPO BOLLI POSTALI;27-08-2018;510;0;298;1;Spese correnti;3;Acquisto di beni e servizi;2;Acquisto di servizi;16;Servizi amministrativi;999;Altre spese per servizi amministrativi;27-08-2018;
888;2;0;"327,63";"3.293,33";OPEN SOFTWARE S.R.L.;ZBB2011AC7;"SALDO Fatt.n. 002940  del 30/06/2018 SERVIZIO DI RNDICONTAZIONE, STAMPA ED IMBUSTAMENTO VERBALI";27-08-2018;510;0;298;1;Spese correnti;3;Acquisto di beni e servizi;2;Acquisto di servizi;16;Servizi amministrativi;999;Altre spese per servizi amministrativi;27-08-2018;
888;3;0;"553,00";"3.293,33";OPEN SOFTWARE S.R.L.;ZBB2011AC7;SALDO Fatt.n. 003480  del 31/07/2018 ANTICIPO BOLLI POSTALI;27-08-2018;510;0;298;1;Spese correnti;3;Acquisto di beni e servizi;2;Acquisto di servizi;16;Servizi amministrativi;999;Altre spese per servizi amministrativi;27-08-2018;
888;4;0;"879,20";"3.293,33";OPEN SOFTWARE S.R.L.;ZBB2011AC7;SALDO Fatt.n. 002942  del 30/06/2018 ANTICIPAZIONE SPESE PER VALORI BOLLATI;27-08-2018;510;0;298;1;Spese correnti;3;Acquisto di beni e servizi;2;Acquisto di servizi;16;Servizi amministrativi;999;Altre spese per servizi amministrativi;27-08-2018;
888;5;0;"1.266,80";"3.293,33";OPEN SOFTWARE S.R.L.;ZBB2011AC7;SALDO Fatt.n. 003481  del 31/07/2018 ANTICIPAZIONE SPESE PER VALORI BOLLATI;27-08-2018;510;0;298;1;Spese correnti;3;Acquisto di beni e servizi;2;Acquisto di servizi;16;Servizi amministrativi;999;Altre spese per servizi amministrativi;27-08-2018;
889;1;0;"854,00";"1.769,00";OPEN SOFTWARE S.R.L.;Z8D245533C;SALDO Fatt.n. 003246  del 31/07/2018 BOLL. PREAVVISI;27-08-2018;401;0;266;1;Spese correnti;3;Acquisto di beni e servizi;1;Acquisto di beni;2;Altri beni di consumo;1;"Carta, cancelleria e stampati";27-08-2018;
889;2;0;"915,00";"1.769,00";OPEN SOFTWARE S.R.L.;Z8D245533C;SALDO Fatt.n. 003245  del 31/07/2018 BOLL. VERBALI FORMATO A4;27-08-2018;401;0;266;1;Spese correnti;3;Acquisto di beni e servizi;1;Acquisto di beni;2;Altri beni di consumo;1;"Carta, cancelleria e stampati";27-08-2018;
890;1;0;"2.100,00";"2.100,00";COMUNE DI MASON VICENTINO; ;PROGETTO HOME CARE PREMIUM 2017/2018  RIMBORSO AL COMUNE DI MASON VICENTINO PER PRESTAZIONI INTEGRATIVE DI ASSISTENZA DOMICILIARE  PERIODO OTTOBRE 2017  APRILE 2018;27-08-2018;1703;0;282;1;Spese correnti;3;Acquisto di beni e servizi;2;Acquisto di servizi;99;Altri servizi;999;Altri servizi diversi n.a.c.;27-08-2018;
891;1;0;"1.610,40";"1.610,40";S.A.I.E.S. SRL;ZD223653B0;ACCONTO Fatt.n. 64  del 12/07/2018;27-08-2018;2151;0;177;2;Spese in conto capitale;2;Investimenti fissi lordi e acquisto di terreni;1;Beni materiali;7;Hardware;999;Hardware n.a.c.;27-08-2018;
892;1;0;"17,64";"27,52";COMUNE DI MARANO VICENTINO;0000000000;RIMBORSO SPESE DI NOTIFICA ANNO 2018. NR. 3 ATTI;27-08-2018;273;0;123;1;Spese correnti;4;Trasferimenti correnti;1;Trasferimenti correnti a Amministrazioni Pubbliche;2;Trasferimenti correnti a Amministrazioni Locali;3;Trasferimenti correnti a Comuni;27-08-2018;
892;2;0;"9,88";"27,52";COMUNE DI PADERNO DEL GRAPPA;0000000000;RIMBORSO SPESE DI NOTIFICA ANNO 2018 SIG SANDRU ADRIAN;27-08-2018;273;0;123;1;Spese correnti;4;Trasferimenti correnti;1;Trasferimenti correnti a Amministrazioni Pubbliche;2;Trasferimenti correnti a Amministrazioni Locali;3;Trasferimenti correnti a Comuni;27-08-2018;
893;1;0;"-915,00";"884,50";TONIATO ERMENEGILDO;Z3C241DF92;SALDO Fatt.n. 1  del 17/08/2018 MANUTENZIONE E ASSISTENZA SOFTWARE APPLICATIVO VISTA PLUS 2000 PER IL COMUNE DI MAROSTICA - ANNO 2018.;28-08-2018;264;0;261;1;Spese correnti;3;Acquisto di beni e servizi;2;Acquisto di servizi;19;Servizi informatici e di telecomunicazioni;1;Gestione e manutenzione applicazioni;28-08-2018;
893;2;0;"884,50";"884,50";TONIATO ERMENEGILDO;Z3C241DF92;SALDO Fatt.n. 5  del 17/08/2018 MANUTENZIONE E ASSISTENZA SOFTWARE APPLICATIVO VISTA PLUS 2000 PER IL COMUNE DI MAROSTICA - ANNO 2018.;28-08-2018;264;0;261;1;Spese correnti;3;Acquisto di beni e servizi;2;Acquisto di servizi;19;Servizi informatici e di telecomunicazioni;1;Gestione e manutenzione applicazioni;28-08-2018;
893;3;0;"915,00";"884,50";TONIATO ERMENEGILDO;Z3C241DF92;SALDO Fatt.n. 3  del 26/07/2018 MANUTENZIONE E ASSISTENZA SOFTWARE APPLICATIVO VISTA PLUS 2000 PER IL COMUNE DI MAROSTICA - ANNO 2018.;28-08-2018;264;0;261;1;Spese correnti;3;Acquisto di beni e servizi;2;Acquisto di servizi;19;Servizi informatici e di telecomunicazioni;1;Gestione e manutenzione applicazioni;28-08-2018;
894;1;0;"30,00";"30,00";ANAC - AUTORITA' NAZIONALE ANTICORRUZIONE; ;CONTRIBUTO ANAC RIFERITO ALLA GARA D'APPALTO PER LE POLITICHE GIOVANILI;28-08-2018;1606;0;294;1;Spese correnti;3;Acquisto di beni e servizi;2;Acquisto di servizi;99;Altri servizi;999;Altri servizi diversi n.a.c.;28-08-2018;
895;1;0;"1.883,69";"1.883,69";MONTICELLO MARTA;Z8B236CBC7;SALDO Fatt.n. 1/E  del 24/07/2018 PATROCINIO LEGALE EX ART. 28 C.C.N.L. 14/9/2000.;28-08-2018;130;0;191;1;Spese correnti;3;Acquisto di beni e servizi;2;Acquisto di servizi;11;Prestazioni professionali e specialistiche;6;Patrocinio legale;28-08-2018;
896;1;0;"1.780,00";"1.780,00";GIES S.R.L.;ZCE1CA2093;SALDO Fatt.n. 1158/A  del 16/07/2018 saldo su servizio di importazione dati patrimoniali;28-08-2018;264;0;379;1;Spese correnti;3;Acquisto di beni e servizi;2;Acquisto di servizi;19;Servizi informatici e di telecomunicazioni;1;Gestione e manutenzione applicazioni;28-08-2018;
897;1;0;"391,60";"391,60";AGENZIA DELLE ENTRATE  - ERARIO C/IVA;ZC1E1CA209;VERSAMENTO IVA SU ACQUISTI DA SAN MARINO -FATT. 1158/A DEL 16/07/18;28-08-2018;264;0;379;1;Spese correnti;3;Acquisto di beni e servizi;2;Acquisto di servizi;19;Servizi informatici e di telecomunicazioni;1;Gestione e manutenzione applicazioni;28-08-2018;
899;1;0;"5,88";"5,88";COMUNE DI CARMIGNANO DI BRENTA;0000000000;RIMBORSO SPESE DI NOTIFICA ANNO 2018;05-09-2018;273;0;123;1;Spese correnti;4;Trasferimenti correnti;1;Trasferimenti correnti a Amministrazioni Pubbliche;2;Trasferimenti correnti a Amministrazioni Locali;3;Trasferimenti correnti a Comuni;05-09-2018;
900;1;0;"183,80";"183,80";ZANINI ALDO;0000000000;LIQUIDAZIONE IMPORTO PER ACQUISTO SCARPE PER GLI AGENTI/UFFICIALI APPARTENENTI AL CORPO DI POLIZIA LOCALE- ANNO 2018;05-09-2018;403;0;24;1;Spese correnti;3;Acquisto di beni e servizi;1;Acquisto di beni;2;Altri beni di consumo;4;Vestiario;05-09-2018;
902;1;0;"306,90";"306,90";MINISTERO DELLE INFRASTRUTTURE E DEI TRASPORTI;0000000000;CORRISPETTIVI TRIMESTRALI - UTENZA DPR 634/94 - CAPO XV CAPITOLO 2459 - 2^ TRIMESTRE 2018;06-09-2018;502;0;295;1;Spese correnti;3;Acquisto di beni e servizi;2;Acquisto di servizi;5;Utenze e canoni;3;Accesso a banche dati e a pubblicazioni on line;06-09-2018;
903;1;0;"97,38";"390,58";TELECOM ITALIA S.P.A. - (TIM S.P.A.); ;SALDO Fatt.n. 8E00705473  del 06/08/2018 UTENZA TELEFONICA. IDENTIFICATIVO CONTRATTO 042472255. 5BIM 2018;06-09-2018;231;0;140;1;Spese correnti;3;Acquisto di beni e servizi;2;Acquisto di servizi;5;Utenze e canoni;1;Telefonia fissa;06-09-2018;
903;2;0;"293,20";"390,58";TELECOM ITALIA S.P.A. - (TIM S.P.A.); ;SALDO Fatt.n. 8E00703838  del 06/08/2018 UTENZA TELEFONICA. IDENTIFICATIVO CONTRATTO 042472144. 5BIM 2018;06-09-2018;231;0;140;1;Spese correnti;3;Acquisto di beni e servizi;2;Acquisto di servizi;5;Utenze e canoni;1;Telefonia fissa;06-09-2018;
904;1;0;"81,82";"81,82";TELECOM ITALIA S.P.A. - (TIM S.P.A.); ;SALDO Fatt.n. 7X03596258  del 14/08/2018 UTENZA TELEFONICA. IDENTIFICATIVO CONTRATTO 888000540158. 5BIM 2018;06-09-2018;231;0;141;1;Spese correnti;3;Acquisto di beni e servizi;2;Acquisto di servizi;5;Utenze e canoni;2;Telefonia mobile;06-09-2018;
905;1;0;"25,00";"25,00";CITTA' INFORMATICA MAROSTICA BROLLO FLAVIO;ZDC1ED0254;SALDO Fatt.n. FATTPA 20_18  del 04/09/2018 FORNITURA TONER STAMPANTE ASILO NIDO;06-09-2018;250;0;198;1;Spese correnti;3;Acquisto di beni e servizi;1;Acquisto di beni;2;Altri beni di consumo;1;"Carta, cancelleria e stampati";06-09-2018;
906;1;0;"427,00";"427,00";TELEMAR S.P.A.;Z812316D68;SALDO Fatt.n. 245/18-e  del 20/07/2018 GESTIONE DEL DOMINIO COMUNE.PIANEZZE;06-09-2018;265;0;152;1;Spese correnti;3;Acquisto di beni e servizi;2;Acquisto di servizi;19;Servizi informatici e di telecomunicazioni;4;Servizi di rete per trasmissione dati e VoIP e relativa manutenzione;06-09-2018;
907;1;0;"109,80";"109,80";SHARP ELECTRONICS (ITALIA) SPA;ZCD234848A;"SALDO Fatt.n. 7718014243  del 27/07/2018 UNIONE MONTANA MAROSTICENSE, ORDINE 4273695, CIG zcd234848a COMPETENZA 23/04/2018 al 22/07/2018. CANONE";06-09-2018;264;0;166;1;Spese correnti;3;Acquisto di beni e servizi;2;Acquisto di servizi;19;Servizi informatici e di telecomunicazioni;7;Servizi di gestione documentale;06-09-2018;
908;1;0;"2.580,30";"2.580,30";S.A.I.E.S. SRL;Z19204FD6E;SALDO Fatt.n. 66  del 12/07/2018 SERVIZIO AFM;06-09-2018;264;0;322;1;Spese correnti;3;Acquisto di beni e servizi;2;Acquisto di servizi;19;Servizi informatici e di telecomunicazioni;1;Gestione e manutenzione applicazioni;06-09-2018;
909;1;0;"720,00";"16.320,00";OMESSO NOMINATIVO NEL RISPETTO DELLA NORMATIVA SULLA PROTEZIONE DATI PERSONALI; ;LIQUIDAZIONE ICD B (IMPEGNATIVE DI CURA DOMICILIARE DI TIPO B) 1^ SEMESTRE 2018 E ICDM (DI TIPO M) 2^ TRIMESTRE 2018;06-09-2018;1900;0;305;1;Spese correnti;4;Trasferimenti correnti;2;Trasferimenti correnti a Famiglie;2;Interventi assistenziali;999;Altri assegni e sussidi assistenziali;06-09-2018;
909;2;0;"120,00";"16.320,00";OMESSO NOMINATIVO NEL RISPETTO DELLA NORMATIVA SULLA PROTEZIONE DATI PERSONALI; ;LIQUIDAZIONE ICD B (IMPEGNATIVE DI CURA DOMICILIARE DI TIPO B) 1^ SEMESTRE 2018 E ICDM (DI TIPO M) 2^ TRIMESTRE 2018;06-09-2018;1900;0;305;1;Spese correnti;4;Trasferimenti correnti;2;Trasferimenti correnti a Famiglie;2;Interventi assistenziali;999;Altri assegni e sussidi assistenziali;06-09-2018;
909;3;0;"720,00";"16.320,00";OMESSO NOMINATIVO NEL RISPETTO DELLA NORMATIVA SULLA PROTEZIONE DATI PERSONALI; ;LIQUIDAZIONE ICD B (IMPEGNATIVE DI CURA DOMICILIARE DI TIPO B) 1^ SEMESTRE 2018 E ICDM (DI TIPO M) 2^ TRIMESTRE 2018;06-09-2018;1900;0;305;1;Spese correnti;4;Trasferimenti correnti;2;Trasferimenti correnti a Famiglie;2;Interventi assistenziali;999;Altri assegni e sussidi assistenziali;06-09-2018;
909;4;0;"720,00";"16.320,00";OMESSO NOMINATIVO NEL RISPETTO DELLA NORMATIVA SULLA PROTEZIONE DATI PERSONALI; ;LIQUIDAZIONE ICD B (IMPEGNATIVE DI CURA DOMICILIARE DI TIPO B) 1^ SEMESTRE 2018 E ICDM (DI TIPO M) 2^ TRIMESTRE 2018;06-09-2018;1900;0;305;1;Spese correnti;4;Trasferimenti correnti;2;Trasferimenti correnti a Famiglie;2;Interventi assistenziali;999;Altri assegni e sussidi assistenziali;06-09-2018;
909;5;0;"720,00";"16.320,00";OMESSO NOMINATIVO NEL RISPETTO DELLA NORMATIVA SULLA PROTEZIONE DATI PERSONALI; ;LIQUIDAZIONE ICD B (IMPEGNATIVE DI CURA DOMICILIARE DI TIPO B) 1^ SEMESTRE 2018 E ICDM (DI TIPO M) 2^ TRIMESTRE 2018;06-09-2018;1900;0;305;1;Spese correnti;4;Trasferimenti correnti;2;Trasferimenti correnti a Famiglie;2;Interventi assistenziali;999;Altri assegni e sussidi assistenziali;06-09-2018;
909;6;0;"720,00";"16.320,00";OMESSO NOMINATIVO NEL RISPETTO DELLA NORMATIVA SULLA PROTEZIONE DATI PERSONALI; ;LIQUIDAZIONE ICD B (IMPEGNATIVE DI CURA DOMICILIARE DI TIPO B) 1^ SEMESTRE 2018 E ICDM (DI TIPO M) 2^ TRIMESTRE 2018;06-09-2018;1900;0;305;1;Spese correnti;4;Trasferimenti correnti;2;Trasferimenti correnti a Famiglie;2;Interventi assistenziali;999;Altri assegni e sussidi assistenziali;06-09-2018;
909;7;0;"720,00";"16.320,00";OMESSO NOMINATIVO NEL RISPETTO DELLA NORMATIVA SULLA PROTEZIONE DATI PERSONALI; ;LIQUIDAZIONE ICD B (IMPEGNATIVE DI CURA DOMICILIARE DI TIPO B) 1^ SEMESTRE 2018 E ICDM (DI TIPO M) 2^ TRIMESTRE 2018;06-09-2018;1900;0;305;1;Spese correnti;4;Trasferimenti correnti;2;Trasferimenti correnti a Famiglie;2;Interventi assistenziali;999;Altri assegni e sussidi assistenziali;06-09-2018;
909;8;0;"720,00";"16.320,00";OMESSO NOMINATIVO NEL RISPETTO DELLA NORMATIVA SULLA PROTEZIONE DATI PERSONALI; ;LIQUIDAZIONE ICD B (IMPEGNATIVE DI CURA DOMICILIARE DI TIPO B) 1^ SEMESTRE 2018 E ICDM (DI TIPO M) 2^ TRIMESTRE 2018;06-09-2018;1900;0;305;1;Spese correnti;4;Trasferimenti correnti;2;Trasferimenti correnti a Famiglie;2;Interventi assistenziali;999;Altri assegni e sussidi assistenziali;06-09-2018;
909;9;0;"720,00";"16.320,00";OMESSO NOMINATIVO NEL RISPETTO DELLA NORMATIVA SULLA PROTEZIONE DATI PERSONALI; ;LIQUIDAZIONE ICD B (IMPEGNATIVE DI CURA DOMICILIARE DI TIPO B) 1^ SEMESTRE 2018 E ICDM (DI TIPO M) 2^ TRIMESTRE 2018;06-09-2018;1900;0;305;1;Spese correnti;4;Trasferimenti correnti;2;Trasferimenti correnti a Famiglie;2;Interventi assistenziali;999;Altri assegni e sussidi assistenziali;06-09-2018;
909;10;0;"720,00";"16.320,00";OMESSO NOMINATIVO NEL RISPETTO DELLA NORMATIVA SULLA PROTEZIONE DATI PERSONALI; ;LIQUIDAZIONE ICD B (IMPEGNATIVE DI CURA DOMICILIARE DI TIPO B) 1^ SEMESTRE 2018 E ICDM (DI TIPO M) 2^ TRIMESTRE 2018;06-09-2018;1900;0;305;1;Spese correnti;4;Trasferimenti correnti;2;Trasferimenti correnti a Famiglie;2;Interventi assistenziali;999;Altri assegni e sussidi assistenziali;06-09-2018;
909;11;0;"720,00";"16.320,00";OMESSO NOMINATIVO NEL RISPETTO DELLA NORMATIVA SULLA PROTEZIONE DATI PERSONALI; ;LIQUIDAZIONE ICD B (IMPEGNATIVE DI CURA DOMICILIARE DI TIPO B) 1^ SEMESTRE 2018 E ICDM (DI TIPO M) 2^ TRIMESTRE 2018;06-09-2018;1900;0;305;1;Spese correnti;4;Trasferimenti correnti;2;Trasferimenti correnti a Famiglie;2;Interventi assistenziali;999;Altri assegni e sussidi assistenziali;06-09-2018;
909;12;0;"720,00";"16.320,00";OMESSO NOMINATIVO NEL RISPETTO DELLA NORMATIVA SULLA PROTEZIONE DATI PERSONALI; ;LIQUIDAZIONE ICD B (IMPEGNATIVE DI CURA DOMICILIARE DI TIPO B) 1^ SEMESTRE 2018 E ICDM (DI TIPO M) 2^ TRIMESTRE 2018;06-09-2018;1900;0;305;1;Spese correnti;4;Trasferimenti correnti;2;Trasferimenti correnti a Famiglie;2;Interventi assistenziali;999;Altri assegni e sussidi assistenziali;06-09-2018;
909;13;0;"720,00";"16.320,00";OMESSO NOMINATIVO NEL RISPETTO DELLA NORMATIVA SULLA PROTEZIONE DATI PERSONALI; ;LIQUIDAZIONE ICD B (IMPEGNATIVE DI CURA DOMICILIARE DI TIPO B) 1^ SEMESTRE 2018 E ICDM (DI TIPO M) 2^ TRIMESTRE 2018;06-09-2018;1900;0;305;1;Spese correnti;4;Trasferimenti correnti;2;Trasferimenti correnti a Famiglie;2;Interventi assistenziali;999;Altri assegni e sussidi assistenziali;06-09-2018;
909;14;0;"720,00";"16.320,00";OMESSO NOMINATIVO NEL RISPETTO DELLA NORMATIVA SULLA PROTEZIONE DATI PERSONALI; ;LIQUIDAZIONE ICD B (IMPEGNATIVE DI CURA DOMICILIARE DI TIPO B) 1^ SEMESTRE 2018 E ICDM (DI TIPO M) 2^ TRIMESTRE 2018;06-09-2018;1900;0;305;1;Spese correnti;4;Trasferimenti correnti;2;Trasferimenti correnti a Famiglie;2;Interventi assistenziali;999;Altri assegni e sussidi assistenziali;06-09-2018;
909;15;0;"720,00";"16.320,00";OMESSO NOMINATIVO NEL RISPETTO DELLA NORMATIVA SULLA PROTEZIONE DATI PERSONALI; ;LIQUIDAZIONE ICD B (IMPEGNATIVE DI CURA DOMICILIARE DI TIPO B) 1^ SEMESTRE 2018 E ICDM (DI TIPO M) 2^ TRIMESTRE 2018;06-09-2018;1900;0;305;1;Spese correnti;4;Trasferimenti correnti;2;Trasferimenti correnti a Famiglie;2;Interventi assistenziali;999;Altri assegni e sussidi assistenziali;06-09-2018;
909;16;0;"720,00";"16.320,00";OMESSO NOMINATIVO NEL RISPETTO DELLA NORMATIVA SULLA PROTEZIONE DATI PERSONALI; ;LIQUIDAZIONE ICD B (IMPEGNATIVE DI CURA DOMICILIARE DI TIPO B) 1^ SEMESTRE 2018 E ICDM (DI TIPO M) 2^ TRIMESTRE 2018;06-09-2018;1900;0;305;1;Spese correnti;4;Trasferimenti correnti;2;Trasferimenti correnti a Famiglie;2;Interventi assistenziali;999;Altri assegni e sussidi assistenziali;06-09-2018;
909;17;0;"720,00";"16.320,00";OMESSO NOMINATIVO NEL RISPETTO DELLA NORMATIVA SULLA PROTEZIONE DATI PERSONALI; ;LIQUIDAZIONE ICD B (IMPEGNATIVE DI CURA DOMICILIARE DI TIPO B) 1^ SEMESTRE 2018 E ICDM (DI TIPO M) 2^ TRIMESTRE 2018;06-09-2018;1900;0;305;1;Spese correnti;4;Trasferimenti correnti;2;Trasferimenti correnti a Famiglie;2;Interventi assistenziali;999;Altri assegni e sussidi assistenziali;06-09-2018;
909;18;0;"720,00";"16.320,00";OMESSO NOMINATIVO NEL RISPETTO DELLA NORMATIVA SULLA PROTEZIONE DATI PERSONALI; ;LIQUIDAZIONE ICD B (IMPEGNATIVE DI CURA DOMICILIARE DI TIPO B) 1^ SEMESTRE 2018 E ICDM (DI TIPO M) 2^ TRIMESTRE 2018;06-09-2018;1900;0;305;1;Spese correnti;4;Trasferimenti correnti;2;Trasferimenti correnti a Famiglie;2;Interventi assistenziali;999;Altri assegni e sussidi assistenziali;06-09-2018;
909;19;0;"360,00";"16.320,00";OMESSO NOMINATIVO NEL RISPETTO DELLA NORMATIVA SULLA PROTEZIONE DATI PERSONALI; ;LIQUIDAZIONE ICD B (IMPEGNATIVE DI CURA DOMICILIARE DI TIPO B) 1^ SEMESTRE 2018 E ICDM (DI TIPO M) 2^ TRIMESTRE 2018;06-09-2018;1900;0;305;1;Spese correnti;4;Trasferimenti correnti;2;Trasferimenti correnti a Famiglie;2;Interventi assistenziali;999;Altri assegni e sussidi assistenziali;06-09-2018;
909;20;0;"720,00";"16.320,00";OMESSO NOMINATIVO NEL RISPETTO DELLA NORMATIVA SULLA PROTEZIONE DATI PERSONALI; ;LIQUIDAZIONE ICD B (IMPEGNATIVE DI CURA DOMICILIARE DI TIPO B) 1^ SEMESTRE 2018 E ICDM (DI TIPO M) 2^ TRIMESTRE 2018;06-09-2018;1900;0;305;1;Spese correnti;4;Trasferimenti correnti;2;Trasferimenti correnti a Famiglie;2;Interventi assistenziali;999;Altri assegni e sussidi assistenziali;06-09-2018;
909;21;0;"720,00";"16.320,00";OMESSO NOMINATIVO NEL RISPETTO DELLA NORMATIVA SULLA PROTEZIONE DATI PERSONALI; ;LIQUIDAZIONE ICD B (IMPEGNATIVE DI CURA DOMICILIARE DI TIPO B) 1^ SEMESTRE 2018 E ICDM (DI TIPO M) 2^ TRIMESTRE 2018;06-09-2018;1900;0;305;1;Spese correnti;4;Trasferimenti correnti;2;Trasferimenti correnti a Famiglie;2;Interventi assistenziali;999;Altri assegni e sussidi assistenziali;06-09-2018;
909;22;0;"720,00";"16.320,00";OMESSO NOMINATIVO NEL RISPETTO DELLA NORMATIVA SULLA PROTEZIONE DATI PERSONALI; ;LIQUIDAZIONE ICD B (IMPEGNATIVE DI CURA DOMICILIARE DI TIPO B) 1^ SEMESTRE 2018 E ICDM (DI TIPO M) 2^ TRIMESTRE 2018;06-09-2018;1900;0;305;1;Spese correnti;4;Trasferimenti correnti;2;Trasferimenti correnti a Famiglie;2;Interventi assistenziali;999;Altri assegni e sussidi assistenziali;06-09-2018;
909;23;0;"720,00";"16.320,00";OMESSO NOMINATIVO NEL RISPETTO DELLA NORMATIVA SULLA PROTEZIONE DATI PERSONALI; ;LIQUIDAZIONE ICD B (IMPEGNATIVE DI CURA DOMICILIARE DI TIPO B) 1^ SEMESTRE 2018 E ICDM (DI TIPO M) 2^ TRIMESTRE 2018;06-09-2018;1900;0;305;1;Spese correnti;4;Trasferimenti correnti;2;Trasferimenti correnti a Famiglie;2;Interventi assistenziali;999;Altri assegni e sussidi assistenziali;06-09-2018;
909;24;0;"720,00";"16.320,00";OMESSO NOMINATIVO NEL RISPETTO DELLA NORMATIVA SULLA PROTEZIONE DATI PERSONALI; ;LIQUIDAZIONE ICD B (IMPEGNATIVE DI CURA DOMICILIARE DI TIPO B) 1^ SEMESTRE 2018 E ICDM (DI TIPO M) 2^ TRIMESTRE 2018;06-09-2018;1900;0;305;1;Spese correnti;4;Trasferimenti correnti;2;Trasferimenti correnti a Famiglie;2;Interventi assistenziali;999;Altri assegni e sussidi assistenziali;06-09-2018;
910;1;0;"720,00";"15.120,00";OMESSO NOMINATIVO NEL RISPETTO DELLA NORMATIVA SULLA PROTEZIONE DATI PERSONALI; ;LIQUIDAZIONE ICD B (IMPEGNATIVE DI CURA DOMICILIARE DI TIPO B) 1^ SEMESTRE 2018 E ICDM (DI TIPO M) 2^ TRIMESTRE 2018;06-09-2018;1900;0;305;1;Spese correnti;4;Trasferimenti correnti;2;Trasferimenti correnti a Famiglie;2;Interventi assistenziali;999;Altri assegni e sussidi assistenziali;06-09-2018;
910;2;0;"1.200,00";"15.120,00";OMESSO NOMINATIVO NEL RISPETTO DELLA NORMATIVA SULLA PROTEZIONE DATI PERSONALI; ;LIQUIDAZIONE ICD B (IMPEGNATIVE DI CURA DOMICILIARE DI TIPO B) 1^ SEMESTRE 2018 E ICDM (DI TIPO M) 2^ TRIMESTRE 2018;06-09-2018;1900;0;305;1;Spese correnti;4;Trasferimenti correnti;2;Trasferimenti correnti a Famiglie;2;Interventi assistenziali;999;Altri assegni e sussidi assistenziali;06-09-2018;
910;3;0;"1.200,00";"15.120,00";OMESSO NOMINATIVO NEL RISPETTO DELLA NORMATIVA SULLA PROTEZIONE DATI PERSONALI; ;LIQUIDAZIONE ICD B (IMPEGNATIVE DI CURA DOMICILIARE DI TIPO B) 1^ SEMESTRE 2018 E ICDM (DI TIPO M) 2^ TRIMESTRE 2018;06-09-2018;1900;0;305;1;Spese correnti;4;Trasferimenti correnti;2;Trasferimenti correnti a Famiglie;2;Interventi assistenziali;999;Altri assegni e sussidi assistenziali;06-09-2018;
910;4;0;"720,00";"15.120,00";OMESSO NOMINATIVO NEL RISPETTO DELLA NORMATIVA SULLA PROTEZIONE DATI PERSONALI; ;LIQUIDAZIONE ICD B (IMPEGNATIVE DI CURA DOMICILIARE DI TIPO B) 1^ SEMESTRE 2018 E ICDM (DI TIPO M) 2^ TRIMESTRE 2018;06-09-2018;1900;0;305;1;Spese correnti;4;Trasferimenti correnti;2;Trasferimenti correnti a Famiglie;2;Interventi assistenziali;999;Altri assegni e sussidi assistenziali;06-09-2018;
910;5;0;"720,00";"15.120,00";OMESSO NOMINATIVO NEL RISPETTO DELLA NORMATIVA SULLA PROTEZIONE DATI PERSONALI; ;LIQUIDAZIONE ICD B (IMPEGNATIVE DI CURA DOMICILIARE DI TIPO B) 1^ SEMESTRE 2018 E ICDM (DI TIPO M) 2^ TRIMESTRE 2018;06-09-2018;1900;0;305;1;Spese correnti;4;Trasferimenti correnti;2;Trasferimenti correnti a Famiglie;2;Interventi assistenziali;999;Altri assegni e sussidi assistenziali;06-09-2018;
910;6;0;"720,00";"15.120,00";OMESSO NOMINATIVO NEL RISPETTO DELLA NORMATIVA SULLA PROTEZIONE DATI PERSONALI; ;LIQUIDAZIONE ICD B (IMPEGNATIVE DI CURA DOMICILIARE DI TIPO B) 1^ SEMESTRE 2018 E ICDM (DI TIPO M) 2^ TRIMESTRE 2018;06-09-2018;1900;0;305;1;Spese correnti;4;Trasferimenti correnti;2;Trasferimenti correnti a Famiglie;2;Interventi assistenziali;999;Altri assegni e sussidi assistenziali;06-09-2018;
910;7;0;"1.200,00";"15.120,00";OMESSO NOMINATIVO NEL RISPETTO DELLA NORMATIVA SULLA PROTEZIONE DATI PERSONALI; ;LIQUIDAZIONE ICD B (IMPEGNATIVE DI CURA DOMICILIARE DI TIPO B) 1^ SEMESTRE 2018 E ICDM (DI TIPO M) 2^ TRIMESTRE 2018;06-09-2018;1900;0;305;1;Spese correnti;4;Trasferimenti correnti;2;Trasferimenti correnti a Famiglie;2;Interventi assistenziali;999;Altri assegni e sussidi assistenziali;06-09-2018;
910;8;0;"1.200,00";"15.120,00";OMESSO NOMINATIVO NEL RISPETTO DELLA NORMATIVA SULLA PROTEZIONE DATI PERSONALI; ;LIQUIDAZIONE ICD B (IMPEGNATIVE DI CURA DOMICILIARE DI TIPO B) 1^ SEMESTRE 2018 E ICDM (DI TIPO M) 2^ TRIMESTRE 2018;06-09-2018;1900;0;305;1;Spese correnti;4;Trasferimenti correnti;2;Trasferimenti correnti a Famiglie;2;Interventi assistenziali;999;Altri assegni e sussidi assistenziali;06-09-2018;
910;9;0;"720,00";"15.120,00";OMESSO NOMINATIVO NEL RISPETTO DELLA NORMATIVA SULLA PROTEZIONE DATI PERSONALI; ;LIQUIDAZIONE ICD B (IMPEGNATIVE DI CURA DOMICILIARE DI TIPO B) 1^ SEMESTRE 2018 E ICDM (DI TIPO M) 2^ TRIMESTRE 2018;06-09-2018;1900;0;305;1;Spese correnti;4;Trasferimenti correnti;2;Trasferimenti correnti a Famiglie;2;Interventi assistenziali;999;Altri assegni e sussidi assistenziali;06-09-2018;
910;10;0;"720,00";"15.120,00";OMESSO NOMINATIVO NEL RISPETTO DELLA NORMATIVA SULLA PROTEZIONE DATI PERSONALI; ;LIQUIDAZIONE ICD B (IMPEGNATIVE DI CURA DOMICILIARE DI TIPO B) 1^ SEMESTRE 2018 E ICDM (DI TIPO M) 2^ TRIMESTRE 2018;06-09-2018;1900;0;305;1;Spese correnti;4;Trasferimenti correnti;2;Trasferimenti correnti a Famiglie;2;Interventi assistenziali;999;Altri assegni e sussidi assistenziali;06-09-2018;
910;11;0;"720,00";"15.120,00";OMESSO NOMINATIVO NEL RISPETTO DELLA NORMATIVA SULLA PROTEZIONE DATI PERSONALI; ;LIQUIDAZIONE ICD B (IMPEGNATIVE DI CURA DOMICILIARE DI TIPO B) 1^ SEMESTRE 2018 E ICDM (DI TIPO M) 2^ TRIMESTRE 2018;06-09-2018;1900;0;305;1;Spese correnti;4;Trasferimenti correnti;2;Trasferimenti correnti a Famiglie;2;Interventi assistenziali;999;Altri assegni e sussidi assistenziali;06-09-2018;
910;12;0;"1.200,00";"15.120,00";OMESSO NOMINATIVO NEL RISPETTO DELLA NORMATIVA SULLA PROTEZIONE DATI PERSONALI; ;LIQUIDAZIONE ICD B (IMPEGNATIVE DI CURA DOMICILIARE DI TIPO B) 1^ SEMESTRE 2018 E ICDM (DI TIPO M) 2^ TRIMESTRE 2018;06-09-2018;1900;0;305;1;Spese correnti;4;Trasferimenti correnti;2;Trasferimenti correnti a Famiglie;2;Interventi assistenziali;999;Altri assegni e sussidi assistenziali;06-09-2018;
910;13;0;"720,00";"15.120,00";OMESSO NOMINATIVO NEL RISPETTO DELLA NORMATIVA SULLA PROTEZIONE DATI PERSONALI; ;LIQUIDAZIONE ICD B (IMPEGNATIVE DI CURA DOMICILIARE DI TIPO B) 1^ SEMESTRE 2018 E ICDM (DI TIPO M) 2^ TRIMESTRE 2018;06-09-2018;1900;0;305;1;Spese correnti;4;Trasferimenti correnti;2;Trasferimenti correnti a Famiglie;2;Interventi assistenziali;999;Altri assegni e sussidi assistenziali;06-09-2018;
910;14;0;"720,00";"15.120,00";OMESSO NOMINATIVO NEL RISPETTO DELLA NORMATIVA SULLA PROTEZIONE DATI PERSONALI; ;LIQUIDAZIONE ICD B (IMPEGNATIVE DI CURA DOMICILIARE DI TIPO B) 1^ SEMESTRE 2018 E ICDM (DI TIPO M) 2^ TRIMESTRE 2018;06-09-2018;1900;0;305;1;Spese correnti;4;Trasferimenti correnti;2;Trasferimenti correnti a Famiglie;2;Interventi assistenziali;999;Altri assegni e sussidi assistenziali;06-09-2018;
910;15;0;"1.200,00";"15.120,00";OMESSO NOMINATIVO NEL RISPETTO DELLA NORMATIVA SULLA PROTEZIONE DATI PERSONALI; ;LIQUIDAZIONE ICD B (IMPEGNATIVE DI CURA DOMICILIARE DI TIPO B) 1^ SEMESTRE 2018 E ICDM (DI TIPO M) 2^ TRIMESTRE 2018;06-09-2018;1900;0;305;1;Spese correnti;4;Trasferimenti correnti;2;Trasferimenti correnti a Famiglie;2;Interventi assistenziali;999;Altri assegni e sussidi assistenziali;06-09-2018;
910;16;0;"720,00";"15.120,00";OMESSO NOMINATIVO NEL RISPETTO DELLA NORMATIVA SULLA PROTEZIONE DATI PERSONALI; ;LIQUIDAZIONE ICD B (IMPEGNATIVE DI CURA DOMICILIARE DI TIPO B) 1^ SEMESTRE 2018 E ICDM (DI TIPO M) 2^ TRIMESTRE 2018;06-09-2018;1900;0;305;1;Spese correnti;4;Trasferimenti correnti;2;Trasferimenti correnti a Famiglie;2;Interventi assistenziali;999;Altri assegni e sussidi assistenziali;06-09-2018;
910;17;0;"720,00";"15.120,00";OMESSO NOMINATIVO NEL RISPETTO DELLA NORMATIVA SULLA PROTEZIONE DATI PERSONALI; ;LIQUIDAZIONE ICD B (IMPEGNATIVE DI CURA DOMICILIARE DI TIPO B) 1^ SEMESTRE 2018 E ICDM (DI TIPO M) 2^ TRIMESTRE 2018;06-09-2018;1900;0;305;1;Spese correnti;4;Trasferimenti correnti;2;Trasferimenti correnti a Famiglie;2;Interventi assistenziali;999;Altri assegni e sussidi assistenziali;06-09-2018;
912;1;0;"-561,08";"427,73";OPEN SOFTWARE S.R.L.;ZBB2011AC7;SALDO Fatt.n. 004134  del 31/08/2018 NOTA DI CREDITO FATTURA RENDICONTAZIONE VERBALI;12-09-2018;510;0;298;1;Spese correnti;3;Acquisto di beni e servizi;2;Acquisto di servizi;16;Servizi amministrativi;999;Altre spese per servizi amministrativi;12-09-2018;
912;2;0;"988,81";"427,73";OPEN SOFTWARE S.R.L.;ZBB2011AC7;"SALDO Fatt.n. 003479  del 31/07/2018 RENDICONTAZIONE, STAMPA ED IMBUSTAMENTO VERBALI";12-09-2018;510;0;298;1;Spese correnti;3;Acquisto di beni e servizi;2;Acquisto di servizi;16;Servizi amministrativi;999;Altre spese per servizi amministrativi;12-09-2018;
913;1;0;"425,60";"425,60";TELECOM ITALIA S.P.A. - (TIM S.P.A.);ZE422929C4;SALDO Fatt.n. 7X03640095  del 14/08/2018 IDENTIFICATIVO CONTRATTO: 888011662046. 5BIM 2018;12-09-2018;231;0;103;1;Spese correnti;3;Acquisto di beni e servizi;2;Acquisto di servizi;5;Utenze e canoni;2;Telefonia mobile;12-09-2018;
914;1;0;"23,18";"23,18";AUTOFFICINA ELETTRAUTO PIZZATO ENZO;ZAF1D259E7;SALDO Fatt.n. 00047  del 29/08/2018 LAVORI SU AUTOVETTURA SKODA YETI TARGATA YA652AL;12-09-2018;233;0;117;1;Spese correnti;3;Acquisto di beni e servizi;2;Acquisto di servizi;9;Manutenzione ordinaria e riparazioni;1;"Manutenzione ordinaria e riparazioni di mezzi di trasporto ad uso civile, di sicurezza e ordine pubblico";12-09-2018;
915;1;0;"63,44";"1.690,71";AUTOFFICINA ELETTRAUTO PIZZATO ENZO;ZAF1D259E7;SALDO Fatt.n. 00046  del 29/08/2018 LAVORI SU AUTOVETTURA FIAT PUNTO TARGATA CH887WJ;12-09-2018;233;0;16;1;Spese correnti;3;Acquisto di beni e servizi;2;Acquisto di servizi;9;Manutenzione ordinaria e riparazioni;1;"Manutenzione ordinaria e riparazioni di mezzi di trasporto ad uso civile, di sicurezza e ordine pubblico";12-09-2018;
915;2;0;"252,15";"1.690,71";AUTOFFICINA ELETTRAUTO PIZZATO ENZO;ZAF1D259E7;SALDO Fatt.n. 00045  del 29/08/2018 LAVORI SU AUTOVETTURA FIAT PUNTO TARGATA CH886WJ;12-09-2018;233;0;16;1;Spese correnti;3;Acquisto di beni e servizi;2;Acquisto di servizi;9;Manutenzione ordinaria e riparazioni;1;"Manutenzione ordinaria e riparazioni di mezzi di trasporto ad uso civile, di sicurezza e ordine pubblico";12-09-2018;
915;3;0;"1.375,12";"1.690,71";AUTOFFICINA ELETTRAUTO PIZZATO ENZO;ZAF1D259E7;SALDO Fatt.n. 00044  del 29/08/2018 LAVORI SU AUTOVETTURA FIAT PANDA TARGATA EG651WY;12-09-2018;233;0;16;1;Spese correnti;3;Acquisto di beni e servizi;2;Acquisto di servizi;9;Manutenzione ordinaria e riparazioni;1;"Manutenzione ordinaria e riparazioni di mezzi di trasporto ad uso civile, di sicurezza e ordine pubblico";12-09-2018;
916;1;0;"491,43";"491,43";SCANAGATTA CARBURANTI SRL;Z1221C7BB3;SALDO Fatt.n. V3   26  del 31/08/2018 FORNITURA CARBURANTE AUTOMEZZI POLIZIA LOCALE MESE DI AGOSTO 2018;12-09-2018;400;0;44;1;Spese correnti;3;Acquisto di beni e servizi;1;Acquisto di beni;2;Altri beni di consumo;2;"Carburanti, combustibili e lubrificanti";12-09-2018;
917;1;0;"498,70";"498,70";SCANAGATTA CARBURANTI SRL;Z1221C7BB3;SALDO Fatt.n. V3   27  del 31/08/2018 FORNITURA CARBURANTE AUTOMEZZI SERVIZI SOCIALI MESE DI AGOSTO 2018;12-09-2018;1599;0;45;1;Spese correnti;3;Acquisto di beni e servizi;1;Acquisto di beni;2;Altri beni di consumo;2;"Carburanti, combustibili e lubrificanti";12-09-2018;
918;1;0;"5,88";"11,76";COMUNE DI BASSANO DEL GRAPPA; ;RIMBORSO SPESE DI NOTIFICA ANNO 2018;12-09-2018;273;0;123;1;Spese correnti;4;Trasferimenti correnti;1;Trasferimenti correnti a Amministrazioni Pubbliche;2;Trasferimenti correnti a Amministrazioni Locali;3;Trasferimenti correnti a Comuni;12-09-2018;
918;2;0;"5,88";"11,76";COMUNE DI PADOVA;0000000000;RIMBORSO SPESE DI NOTIFICA ANNO 2018;12-09-2018;273;0;123;1;Spese correnti;4;Trasferimenti correnti;1;Trasferimenti correnti a Amministrazioni Pubbliche;2;Trasferimenti correnti a Amministrazioni Locali;3;Trasferimenti correnti a Comuni;12-09-2018;
919;1;0;"5.062,00";"5.062,00";COMUNE DI CONCO;0000000000;CONVENZIONE TRA IL COMUNE DI CONCO E L'UNIONE MONTANA MAROSTICENSE PER LA GESTIONE ASSOCIATA DEL SERVIZIO DI POLIZIA LOCALE  ANNO 2018- RENDICONTAZIONE PERIODO MARZO -GIUGNO 2018;12-09-2018;274;0;304;1;Spese correnti;4;Trasferimenti correnti;1;Trasferimenti correnti a Amministrazioni Pubbliche;2;Trasferimenti correnti a Amministrazioni Locali;3;Trasferimenti correnti a Comuni;12-09-2018;
920;1;0;"109,80";"109,80";PROVINCIA DI VICENZA; ;RINNOVO DI DUE CASELLE PEC DEL COMUNE DI PIANEZZE ANNO 2016 2017 E 2018 - PROVINCIA DI VICENZA - CIG Z2C24AB810;13-09-2018;252;0;291;1;Spese correnti;3;Acquisto di beni e servizi;1;Acquisto di beni;2;Altri beni di consumo;6;Materiale informatico;13-09-2018;
921;1;0;"732,00";"732,00";F.G.S. S.R.L.;Z6323D2661;SALDO Fatt.n. 80171  del 20/06/2018 SOSTITUZIONE ARMADIO;13-09-2018;507;0;226;1;Spese correnti;3;Acquisto di beni e servizi;2;Acquisto di servizi;9;Manutenzione ordinaria e riparazioni;4;Manutenzione ordinaria e riparazioni di impianti e macchinari;13-09-2018;
922;1;0;"3.450,00";"3.450,00";STT S.R.L.;ZD31EB0405;SALDO Fatt.n. 179/E  del 17/07/2018 CANONE DI ASSISTENZA/MANUTENZIONE SISTEMA DI VIDEOSORVEGLIANZA DAL 01.01.2018 AL 30.06.2018.;13-09-2018;506;0;194;1;Spese correnti;3;Acquisto di beni e servizi;2;Acquisto di servizi;9;Manutenzione ordinaria e riparazioni;4;Manutenzione ordinaria e riparazioni di impianti e macchinari;13-09-2018;
923;1;0;"14.890,00";"14.890,00";STT S.R.L.;Z8720C0CAB;SALDO Fatt.n. 191/E  del 23/07/2018 AMPLIAMENTO E MIGLIORAMENTO SISTEMA DI VIDEOSORVEGLIANZA - PRIMO LOTTO -FATTURA DI SALDO;13-09-2018;2207;0;354;2;Spese in conto capitale;2;Investimenti fissi lordi e acquisto di terreni;1;Beni materiali;7;Hardware;999;Hardware n.a.c.;13-09-2018;
924;1;0;"1.877,58";"1.877,58";ICOM S.R.L.;Z67235FFF1;SALDO Fatt.n. 73  del 27/07/2018 FORNITURA DI MATERIALE INFORMATICO PER IL SETTORE SERVIZI SOCIALI.;13-09-2018;2151;0;268;2;Spese in conto capitale;2;Investimenti fissi lordi e acquisto di terreni;1;Beni materiali;7;Hardware;2;Postazioni di lavoro;13-09-2018;
925;1;0;"3.818,17";"3.818,17";SERENISSIMA RISTORAZIONE S.P.A.;7288762CAB;SALDO Fatt.n. 04988/4  del 31/07/2018 FORNITURA PASTI A DOMICILIO MESE DI LUGLIO 2018;13-09-2018;1704;0;33;1;Spese correnti;3;Acquisto di beni e servizi;2;Acquisto di servizi;15;Contratti di servizio pubblico;9;Contratti di servizio di assistenza sociale domiciliare;13-09-2018;
926;1;0;"1.427,35";"4.017,84";SERVIZI SOCIALI LA GOCCIA  S.C.S.A R.L.;610826186E;SALDO Fatt.n. 317/PA  del 20/08/2018 LUGLIO 2018. ASSISTENZA SOCIALE;13-09-2018;1610;0;30;1;Spese correnti;3;Acquisto di beni e servizi;2;Acquisto di servizi;15;Contratti di servizio pubblico;9;Contratti di servizio di assistenza sociale domiciliare;13-09-2018;
926;2;0;"2.590,49";"4.017,84";SERVIZI SOCIALI LA GOCCIA  S.C.S.A R.L.;610826186E;SALDO Fatt.n. 316/PA  del 20/08/2018 LUGLIO 2018. ASSISTENZA DOMICILIARE ANZIANI;13-09-2018;1610;0;30;1;Spese correnti;3;Acquisto di beni e servizi;2;Acquisto di servizi;15;Contratti di servizio pubblico;9;Contratti di servizio di assistenza sociale domiciliare;13-09-2018;
927;1;0;"141,69";"425,06";SERVIZI SOCIALI LA GOCCIA  S.C.S.A R.L.;Z3420590EA;SALDO Fatt.n. 310/PA  del 20/08/2018 MESE DI GIUGNO 2018. PROGETTO VESTA - ASSISTENZA SOCIALE BADANTI E ANZIANI;13-09-2018;1660;0;364;1;Spese correnti;3;Acquisto di beni e servizi;2;Acquisto di servizi;11;Prestazioni professionali e specialistiche;2;"Assistenza psicologica, sociale e religiosa";13-09-2018;
927;2;0;"283,37";"425,06";SERVIZI SOCIALI LA GOCCIA  S.C.S.A R.L.;Z3420590EA;SALDO Fatt.n. 311/PA  del 20/08/2018 MESE DI LUGLIO 2018. PROGETTO VESTA - ASSISTENZA SOCIALE BADANTI E ANZIANI;13-09-2018;1660;0;364;1;Spese correnti;3;Acquisto di beni e servizi;2;Acquisto di servizi;11;Prestazioni professionali e specialistiche;2;"Assistenza psicologica, sociale e religiosa";13-09-2018;
928;1;0;"9.678,24";"9.678,24";ADELANTE SOCIETA' COOPERATIVA SOCIALE ONLUS;6048086E71;SALDO Fatt.n. 177E  del 31/08/2018 Gestione del progetto "Giovani Protagonisti" e "Lo Strillone del Quadrilatero" - secondo quadrimestre 2018 (maggio-agosto).;13-09-2018;1717;0;366;1;Spese correnti;3;Acquisto di beni e servizi;2;Acquisto di servizi;11;Prestazioni professionali e specialistiche;999;Altre prestazioni professionali e specialistiche n.a.c.;13-09-2018;
929;1;0;"6.368,40";"6.368,40";HALLEY VENETO S.R.L.;ZB516AE32D;SALDO Fatt.n. 1/180980  del 29/08/2018 CANONE DI MANUTENZIONE SOFTWARE APPLICATIVO E-GOVERNMENT ANNO 2018;13-09-2018;264;0;208;1;Spese correnti;3;Acquisto di beni e servizi;2;Acquisto di servizi;19;Servizi informatici e di telecomunicazioni;1;Gestione e manutenzione applicazioni;13-09-2018;
930;1;0;"254,74";"254,74";CITTA' INFORMATICA MAROSTICA BROLLO FLAVIO;Z121CC040D;SALDO Fatt.n. FATTPA 21_18  del 04/09/2018 SERVIZIO DI COLLABORAZIONE PER INTERVENTI SU POSTAZIONI;13-09-2018;264;0;415;1;Spese correnti;3;Acquisto di beni e servizi;2;Acquisto di servizi;19;Servizi informatici e di telecomunicazioni;1;Gestione e manutenzione applicazioni;13-09-2018;
931;1;0;"2.880,00";"2.880,00";AMESCI;ZEF20F75DD;"SALDO Fatt.n. FATTPA 163_18  del 07/09/2018 ASSISTENZA ALLA PREDISPOSIZIONE, PRESENTAZIONE E GESTIONE DI PROGETTI DI SERVIZIO CIVILE NAZIONALE.";13-09-2018;27;0;359;1;Spese correnti;3;Acquisto di beni e servizi;2;Acquisto di servizi;11;Prestazioni professionali e specialistiche;999;Altre prestazioni professionali e specialistiche n.a.c.;13-09-2018;
933;1;0;"3.108,00";"3.108,00";SERVIZIO CIVILE ANZIANI; ;STIPENDI MESE DI: AGOSTO 18;17-09-2018;1720;0;195;1;Spese correnti;3;Acquisto di beni e servizi;2;Acquisto di servizi;13;Servizi ausiliari per il funzionamento dell'ente;999;Altri servizi ausiliari n.a.c.;17-09-2018;
958;1;0;"85,34";"85,34";PERSONALE DIPENDENTI UFFICI DIVERSI; ;STIPENDI MESE DI: AGOSTO 18;17-09-2018;261;0;168;1;Spese correnti;3;Acquisto di beni e servizi;2;Acquisto di servizi;14;Servizi di ristorazione;2;Servizio mense personale civile;17-09-2018;
999;1;0;"23,52";"29,40";COMUNE DI MARANO VICENTINO;0000000000;RIMBORSO SPESE DI NOTIFICA ANNO 2018;27-09-2018;273;0;123;1;Spese correnti;4;Trasferimenti correnti;1;Trasferimenti correnti a Amministrazioni Pubbliche;2;Trasferimenti correnti a Amministrazioni Locali;3;Trasferimenti correnti a Comuni;27-09-2018;
999;2;0;"5,88";"29,40";COMUNE DI PADERNO DEL GRAPPA;0000000000;RIMBORSO SPESE DI NOTIFICA ANNO 2018;27-09-2018;273;0;123;1;Spese correnti;4;Trasferimenti correnti;1;Trasferimenti correnti a Amministrazioni Pubbliche;2;Trasferimenti correnti a Amministrazioni Locali;3;Trasferimenti correnti a Comuni;27-09-2018;
1000;1;0;"267,36";"1.205,56";OPEN SOFTWARE S.R.L.;ZBB2011AC7;"SALDO Fatt.n. 003940  del 31/08/2018 RENDICONTAZIONE, STAMPA ED IMBUSTAMENTO VERBALI";27-09-2018;510;0;298;1;Spese correnti;3;Acquisto di beni e servizi;2;Acquisto di servizi;16;Servizi amministrativi;999;Altre spese per servizi amministrativi;27-09-2018;
1000;2;0;"426,20";"1.205,56";OPEN SOFTWARE S.R.L.;ZBB2011AC7;SALDO Fatt.n. 003941  del 31/08/2018 ANTICIPO BOLLI POSTALI;27-09-2018;510;0;298;1;Spese correnti;3;Acquisto di beni e servizi;2;Acquisto di servizi;16;Servizi amministrativi;999;Altre spese per servizi amministrativi;27-09-2018;
1000;3;0;"512,00";"1.205,56";OPEN SOFTWARE S.R.L.;ZBB2011AC7;SALDO Fatt.n. 003942  del 31/08/2018 RICHIESTA ANTICIPAZIONE SPESE PER VALORI BOLLATI;27-09-2018;510;0;298;1;Spese correnti;3;Acquisto di beni e servizi;2;Acquisto di servizi;16;Servizi amministrativi;999;Altre spese per servizi amministrativi;27-09-2018;
1001;1;0;"3.987,98";"3.987,98";SERENISSIMA RISTORAZIONE S.P.A.;7288762CAB;SALDO Fatt.n. 05433/4  del 31/08/2018 FORNITURA PASTI A DOMICILIO MESE DI AGOSTO 2018;27-09-2018;1704;0;33;1;Spese correnti;3;Acquisto di beni e servizi;2;Acquisto di servizi;15;Contratti di servizio pubblico;9;Contratti di servizio di assistenza sociale domiciliare;27-09-2018;
1002;1;0;"3.367,20";"3.367,20";AZIENDA TERRITORIALE EDILIZIA RESIDENZIALE PROV.VICENZA;0000000000;SALDO Fatt.n. 2018-V3-0000070  del 07/09/2018 COMPENSO ISTRUTTORIA DOMANDE ASSEGNAZIONE ALLOGGI ANNO 2017 - COMUNE DI MAROSTICA;27-09-2018;1711;0;342;1;Spese correnti;3;Acquisto di beni e servizi;2;Acquisto di servizi;16;Servizi amministrativi;999;Altre spese per servizi amministrativi;27-09-2018;
